{"text_format":"1","workbook":"xlsx","n_sheets":31,"sheets":["modProv","modList00","modList01","modList02","Инструкция","Лог обновления","Титульный","Список МО","Стандарты","Ссылки на публикации","Комментарии","Проверка","AllSheetsInThisWorkbook","TEHSHEET","et_union_hor","et_union_vert","modInfo","modRegion","modReestr","modfrmReestr","modUpdTemplMain","REESTR_ORG","modClassifierValidate","modHyp","modList03","modfrmDateChoose","modComm","modThisWorkbook","REESTR_MO","modfrmReestrMR","modfrmCheckUpdates"],"not_rendered":{"charts":0,"images":21,"macros":1,"external_links":0,"defined_names":143,"comments":0,"pivot_tables":0},"unopened":[],"bounds":{"document_bytes":16777216,"sheet_cells":100000,"rows_first":2000,"rows_last":500,"rows_between":2000,"halvings":0,"cell_chars":16384,"cell_head_chars":4096},"cells_cut":0,"cells_raw":0,"read":"whole","date_system":"1900"}

{"sheet":"modProv","index":0,"n_rows":0,"n_cols":0,"rows_kept":0,"cut":false,"hidden":true,"merged":[]}

{"sheet":"modList00","index":1,"n_rows":0,"n_cols":0,"rows_kept":0,"cut":false,"hidden":true,"merged":[]}

{"sheet":"modList01","index":2,"n_rows":0,"n_cols":0,"rows_kept":0,"cut":false,"hidden":true,"merged":[]}

{"sheet":"modList02","index":3,"n_rows":0,"n_cols":0,"rows_kept":0,"cut":false,"hidden":true,"merged":[]}

{"sheet":"Инструкция","index":4,"n_rows":102,"n_cols":27,"rows_kept":102,"cut":false,"hidden":false,"merged":[[21,15,21,23],[34,4,38,23],[57,4,57,6],[75,4,75,23],[45,4,56,23],[69,4,69,23],[71,4,71,23],[57,7,57,23],[21,5,21,12],[40,4,44,23],[22,15,22,22],[59,7,59,23],[74,4,74,23],[59,4,59,6],[72,4,72,23],[58,4,58,6],[1,1,1,6],[2,1,2,2],[4,1,4,24],[6,4,18,23],[20,5,20,12],[20,15,20,23],[58,7,58,23],[39,4,39,23],[70,4,70,23],[60,7,60,23],[79,8,79,23],[76,4,76,23],[73,4,73,23],[82,4,82,6],[78,4,78,23],[79,4,79,7],[101,5,101,23],[99,5,99,18],[80,4,80,6],[80,7,80,23],[81,4,81,6],[83,7,83,23],[82,7,82,23],[81,7,81,23],[97,4,97,23]]}
[null,null,null,null,null,null,null,null,null,null,null,null,null,null,null,null,null,null,null,null,null,null,null,null,null,null," (требуется обновление)"]
[null,{"$f":"\"Код шаблона: \" & GetCode()","v":"Код шаблона: JKH.OPEN.INFO.REQUEST.WARM"}]
[null,{"$f":"\"Версия \" & GetVersion()","v":"Версия 1.1.1"}]
[]
[null,"Предложение об установлении цен (тарифов) в сфере теплоснабжения и о способах приобретения, стоимости и объемах товаров, необходимых для производства регулируемых товаров и (или) оказания регулируемых услуг"]
[]
[null,null,null,null,"• На рабочем месте должен быть установлен MS Office 2003 SP3, 2007 SP3, 2010 с полной версией MS Excel\n\n• Макросы во время работы должны быть включены (!)\n\n• Для корректной работы отчёта требуется выбрать низкий уровень безопасности\n(В меню MS Excel 2003: Сервис | Макрос | Безопасность | выбрать пункт «Низкая безопасность» | OK)\n(В меню MS Excel 2007/2010: Параметры Excel | Центр управления безопасностью | Параметры центра управления безопасностью | Параметры макросов | Включить все макросы | ОК)\n\n• Если Вы работаете в табличном процессоре MS Excel 2007 и выше, то можете использовать для работы формат XLSM (Книга Excel с поддержкой макросов). При работе в формате XLSM заметно быстрее происходит сохранение файла, а также уменьшается размер по сравнению с форматом XLS\n\n• Не рекомендуется снимать защиту с листов и каким-либо образом модифицировать защищаемые формулы и расчётные поля, в противном случае, отчёт будет отклонён системой\n\n• При сохранении не следует выбирать формат XLSX (Книга Excel), так как в указанном формате макросы, необходимые для работы отчёта, безвозвратно удаляются"]
[]
[]
[]
[]
[]
[]
[]
[]
[]
[]
[]
[]
[]
[null,null,null,null,"A"," - необязательные для заполнения",null,null,null,null,null,null,null,null,"A"," - с формулами и константами"]
[null,null,null,null,"A"," - обязательные для заполнения",null,null,null,null,null,null,null,null,"A"," - с выбором значений до двойному клику,"]
[null,null,null,null,null,null,null,null,null,null,null,null,null,null,null,"либо с возможностью выбора даты из календаря или ручного ввода"]
[]
[]
[]
[]
[]
[]
[]
[]
[]
[]
[]
[null,null,null,null,"Если в предложенном Вам списке необходимая организация, МР/МО отсутствуют, обновите реестры с помощью кнопок\n\nВ результате синхронизации с базой данных список организаций (МР/МО) будет заменён актуальным (механизм синхронизации требует подключения к сети Интернет и основан на использовании протокола HTTPS (TCP порт 443))\n\nЕсли после обновления Вам не удалось найти необходимую организацию в списке, обратитесь к ответственному за поддержание реестра Вашего региона. Информация о региональных органах регулирования доступна по ссылке:"]
[]
[]
[]
[]
[null,null,null,null,"http://www.fstrf.ru/regions/region/showlist"]
[]
[]
[]
[]
[]
[null,null,null,null,"• При сохранении шаблона осуществляется проверка корректности данных, в том числе на наличие значений в ячейках, обязательных для заполнения\n\n• Если какая-то ячейка не удовлетворяет условию проверки, на лист «Проверка» добавляется гиперссылка на данную ячейку и указывается причина ошибки\n\n• В колонке «Статус» для каждого сообщения возможны 2 значения: ошибка и предупреждение\n\n• При наличии сообщений со статусом «Ошибка» шаблон будет отклонён системой и не будет загружен в хранилище данных, сообщения со статусом «Предупреждение» носят информационный характер, и такой шаблон будет принят системой"]
[]
[]
[]
[]
[]
[]
[]
[]
[]
[]
[]
[null,null,null,null,"Web-сайт:",null,null,"http://support.eias.ru/index.php?a=add&catid=5"]
[null,null,null,null,"Дистрибутивы:",null,null,"http://eias.ru/?page=show_distrs"]
[null,null,null,null,null,null,null,"для устранения ошибок (например, \"Compile error in hidden module\")"]
[]
[]
[]
[]
[]
[]
[]
[]
[]
[null,null,null,null,"Принципы работы с шаблоном"]
[null,null,null,null," Перед началом работы с шаблоном Вам необходимо нажать кнопку \"Приступить к заполнению\", после чего на форме выбора выбрать из выпадающего списка нужный субъект РФ. После выбора субъекта РФ в шаблоне отобразятся листы для заполнения."]
[null,null,null,null," На листе «Титульный» нужно заполнить все ячейки голубого и синего цвета.\n Для создания печатной формы нажмите на иконку принтера на листе «Титульный» (левый верхний угол)."]
[null,null,null,null," Гиперссылки на листах вводите, не нарушая цвет ячейки (если копируете гиперссылку из браузера, то выполните двойной щелчок левой кнопки мыши по ячейке и только после этого можете вставить скопированный элемент).\n"]
[null,null,null,null," При вводе даты на расчетных листах необходимо выбрать дату из календаря (иконка справа от выбранной ячейки), либо ввести дату непосредственно в ячейку в формате - 'ДД.ММ.ГГГГ'."]
[null,null,null,null," Если какой-либо из показателей на расчетных листах для Вашей организации отсутствует, введите в поле, обязательное для заполнение, «0» (для числовых показателей) и «-» (для текстовых).\n"]
[null,null,null,null," Внимательно следите за информационными сообщениями на расчетных листах."]
[null,null,null,null," Все необходимые комментарии по всем формам Вы можете отразить на листе «Комментарии»."]
[]
[null,null,null,null," Обосновывающие материалы необходимо загружать с помощью \"ЕИАС Мониторинг\""]
[null,null,null,null,"Инструкция",null,null,null,"http://eias.ru/files/shablon/manual_loading_through_monitoring.pdf"]
[]
[null,null,null,null,"E-mail:",null,null,"openinfo@eias.ru"]
[null,null,null,null,"Web-сайт:",null,null,"http://eias.ru/?page=show_templates"]
[]
[]
[]
[]
[]
[]
[]
[]
[]
[]
[]
[]
[]
[]
[null,null,null,null,"При наличии подключения к Интернет, можно автоматически проверять наличие доступных обновлений. Выберите способ оповещения о наличии обновлений для отчёта:"]
[]
[null,null,null,null,null,"проверять доступные обновления (рекомендуется)",null,null,null,null,null,null,null,null,null,null,null,null,null,null,null,null,null,null,null,null,"y"]
[]
[null,null,null,null,null,"никогда не проверять наличие обновлений (не рекомендуется)"]

{"sheet":"Лог обновления","index":5,"n_rows":16,"n_cols":3,"rows_kept":16,"cut":false,"hidden":true,"merged":[]}
["Дата/Время","Сообщение","Статус"]
[]
["2014-06-04T17:46:15","Проверка доступных обновлений...","Информация"]
["2014-06-04T17:46:16","Версия шаблона 1.1.1 актуальна, обновление не требуется","Информация"]
["2014-06-25T09:02:56","Проверка доступных обновлений...","Информация"]
["2014-06-25T09:02:58","Версия шаблона 1.1.1 актуальна, обновление не требуется","Информация"]
["2014-06-25T09:18:02","Проверка доступных обновлений...","Информация"]
["2014-06-25T09:18:04","Версия шаблона 1.1.1 актуальна, обновление не требуется","Информация"]
["2015-05-21T10:15:58","Проверка доступных обновлений...","Информация"]
["2015-05-21T10:16:01","Версия шаблона 1.1.1 актуальна, обновление не требуется","Информация"]
["2015-05-21T11:19:24","Проверка доступных обновлений...","Информация"]
["2015-05-21T11:19:27","Версия шаблона 1.1.1 актуальна, обновление не требуется","Информация"]
["2016-05-27T17:22:19","Проверка доступных обновлений...","Информация"]
["2016-05-27T17:22:24","Нет доступных обновлений для шаблона с кодом JKH.OPEN.INFO.REQUEST.WARM!","Информация"]
["2016-05-30T15:09:01","Проверка доступных обновлений...","Информация"]
["2016-05-30T15:09:01","Версия шаблона 1.1.1 актуальна, обновление не требуется","Информация"]

{"sheet":"Титульный","index":6,"n_rows":56,"n_cols":6,"rows_kept":56,"cut":false,"hidden":false,"merged":[[4,4,4,5]]}
[null,null,null,null,null,26816056]
[]
[]
[null,null,null,null,null,{"$f":"version","v":"Версия 1.1.1"}]
[null,null,null,null,"Предложение об установлении цен (тарифов) в сфере теплоснабжения и о способах приобретения, стоимости и объемах товаров, необходимых для производства регулируемых товаров и (или) оказания регулируемых услуг"]
[]
[null,null,null,null,"Субъект РФ","Ставропольский край"]
[]
[null,null,null,null,"Публикация","На сайте регулирующего органа"]
[]
[null,null,null,null,"По желанию организации информация раскрыта в дополнительных источниках публикации?","да"]
[]
["нет",null,null,null,"Указывать разбивку НВВ по полугодиям","нет"]
[]
[null,null,null,null,null,"Период регулирования"]
["01.01.2017",null,null,null,"Начало очередного периода регулирования","01.01.2017"]
["31.12.2018",null,null,null,"Окончание очередного периода регулирования","31.12.2018"]
[]
[null,null,null,null,"Является ли данное юридическое лицо подразделением (филиалом) другой организации","да"]
[]
[null,null,null,null,"Наименование организации","Северо-Кавказская дирекция по тепловодоснабжению структурное подразделение Центральной дирекции по тепловодоснабжению - филиала ОАО \"РЖД\""]
[null,null,null,null,"Наименование филиала","Северо-Кавказская дирекция по тепловодоснабжению структурное подразделение Центральной дирекции по тепловодоснабжению - филиала ОАО \"РЖД\""]
[null,null,null,null,"ИНН","7708503727"]
[null,null,null,null,"КПП","616745019"]
[]
[null,null,null,null,"Вид деятельности","производство (некомбинированная выработка)+передача+сбыт"]
[]
[null,null,null,null,"Режим налогообложения","общий"]
[]
[null,null,null,null,"Организация выполняет/планирует к выполнению инвестиционную программу","нет"]
[]
["тариф на тепловую энергию (мощность)",null,null,null,"Тариф","тариф на тепловую энергию (мощность)"]
[]
[null,null,null,null,"Наличие двухставочного тарифа","нет"]
[]
[null,null,null,null,"НДС (Отметка об учтенном НДС)","тариф указан без НДС для плательщиков НДС"]
[]
[null,null,null,null,"Тариф на теплоноситель установлен с разбивкой по поставщикам"]
[]
[null,null,null,null,null,"Адрес регулируемой организации"]
[null,null,null,null,"Юридический адрес","127078 г.Москва ул. Каланчевская,15а"]
[null,null,null,null,"Почтовый адрес","357200, г. Минеральные Воды, ул. Октябрьская,3"]
[]
[null,null,null,null,null,"Руководитель"]
[null,null,null,null,"Фамилия, имя, отчество","Кузьменко Алексей Иванович"]
[null,null,null,null,"(код) номер телефона","Начальник Минераловодского территориального участка"]
[]
[null,null,null,null,null,"Главный бухгалтер"]
[null,null,null,null,"Фамилия, имя, отчество","Лепшакова Мархаба Хамидовна"]
[null,null,null,null,"(код) номер телефона","8 (87922) 47-8-67"]
[]
[null,null,null,null,null,"Должностное лицо, ответственное за составление формы"]
[null,null,null,null,"Фамилия, имя, отчество","Кравцова Виктория Анатольевна"]
[null,null,null,null,"Должность","Ведущий экономист"]
[null,null,null,null,"(код) номер телефона","8 (87922) 47-6-82"]
[null,null,null,null,"e-mail","kravcova26@rambler.ru"]

{"sheet":"Список МО","index":7,"n_rows":16,"n_cols":8,"rows_kept":16,"cut":false,"hidden":false,"merged":[[13,3,14,3],[13,4,14,4],[3,3,3,7],[4,3,4,7],[6,5,6,7],[7,5,7,7],[8,5,8,7]]}
[]
[]
[]
[null,null,null,"Дифференциация тарифа"]
[null,null,null,{"$f":"IF(org=0,\"Не определено\",org)","v":"Северо-Кавказская дирекция по тепловодоснабжению структурное подразделение Центральной дирекции по тепловодоснабжению - филиала ОАО \"РЖД\""}]
[]
[null,null,null,null,null,"Система теплоснабжения"]
[null,null,null,null,"Условный порядковый номер",1]
[null,null,null,null,"Описание","Система теплоснабжения"]
[]
[null,null,null,"№ п/п","Муниципальный район","№ п/п","Муниципальное образование","ОКТМО"]
[null,null,null,"1","2","3","4","5"]
[null,null,null,0,null,0]
[null,null,null,1,"Минераловодский муниципальный район",1,"Город Минеральные Воды","07639101"]
[null,null,null,null,null,null,"Добавить МО"]
[null,null,null,null,"Добавить МР"]

{"sheet":"Стандарты","index":8,"n_rows":47,"n_cols":8,"rows_kept":47,"cut":false,"hidden":false,"merged":[[46,4,46,7],[4,3,4,7],[5,3,5,7],[16,0,21,0],[22,0,27,0]]}
[]
[]
[]
[]
[null,null,null,"Предложение об установлении цен (тарифов) в сфере теплоснабжения и о способах приобретения, стоимости и объемах товаров, необходимых для производства регулируемых товаров и (или) оказания регулируемых услуг"]
[null,null,null,{"$f":"IF(org=0,\"Не определено\",org)","v":"Северо-Кавказская дирекция по тепловодоснабжению структурное подразделение Центральной дирекции по тепловодоснабжению - филиала ОАО \"РЖД\""}]
[]
[null,null,null,"№ п/п","Информация, подлежащая раскрытию","Значение","Ссылки на документы","Примечание"]
[null,null,null,"1","2","3","4","5"]
[null,null,null,"1.","Информация о предложении регулируемой организации об установлении тарифов в сфере теплоснабжения на очередной период регулирования",null,null,0]
[null,null,null,"1.1.","Копия утвержденной в установленном порядке инвестиционной программы (проекта инвестиционной программы)"]
[null,null,null,"1.2.","Метод регулирования",null,null,0]
["1.2.1","О",null,{"$f":"A13&\".\"","v":"1.2.1."},"С 01.01.2017 по 31.12.2017","метод индексации установленных тарифов",null,"нет"]
["1.2.2","О",null,{"$f":"A14&\".\"","v":"1.2.2."},"С 01.01.2018 по 31.12.2018","метод индексации установленных тарифов",null,"нет"]
[null,null,null,null,"Добавить метод"]
[null,null,null,"1.3.",{"$f":"\"Расчетная величина цен (тарифов)\"&IF(group_rates<>tariff_GVS,IF(group_rates=\"\",\"\",IF(double_rate_tariff=\"да\",\"\",\", \"&unit_tariff_single_rate)),\"\")","v":"Расчетная величина цен (тарифов),  руб/Гкал"},null,null,0]
["1.3.1",null,null,{"$f":"A17&\".\"","v":"1.3.1."},"С 01.01.2017 по 31.12.2017",1690.39,null,"нет"]
[null,null,null,{"$f":"D17&IF(group_rates=tariff_GVS,\"1.\",\"\")","v":"1.3.1."},{"$f":"IF(group_rates=\"\",\"\",IF(group_rates=TEHSHEET!$S$10,TEHSHEET!$R$10,group_rates)) & IF(double_rate_tariff=\"да\",,\", \"&unit_tariff_single_rate)","v":"тариф на тепловую энергию (мощность),  руб/Гкал"}]
[null,null,null,{"$f":"D18&\"1.\"","v":"1.3.1.1."},{"$f":"name_dblRate_1 & \", \" & unit_tariff_double_rate_p","v":"мощность,  руб/Гкал"}]
[null,null,null,{"$f":"D18&\"2.\"","v":"1.3.1.2."},{"$f":"name_dblRate_2 & \", \" & unit_tariff_double_rate_c","v":"содержание,  тыс руб/Гкал/час в месяц"}]
[null,"f",null,{"$f":"D17&\"2.\"","v":"1.3.1.2."},{"$f":"IF(group_rates=\"\",\"\",IF(group_rates=TEHSHEET!$S$10,TEHSHEET!$R$11,\"\"))&\", \"&TEHSHEET!$T$5","v":", руб/м3"}]
[null,null,null,null,"Добавить поставщика"]
["1.3.2",null,null,{"$f":"A23&\".\"","v":"1.3.2."},"С 01.01.2018 по 31.12.2018",1758.31,null,"нет"]
[null,null,null,{"$f":"D23&IF(group_rates=tariff_GVS,\"1.\",\"\")","v":"1.3.2."},{"$f":"IF(group_rates=\"\",\"\",IF(group_rates=TEHSHEET!$S$10,TEHSHEET!$R$10,group_rates)) & IF(double_rate_tariff=\"да\",,\", \"&unit_tariff_single_rate)","v":"тариф на тепловую энергию (мощность),  руб/Гкал"}]
[null,null,null,{"$f":"D24&\"1.\"","v":"1.3.2.1."},{"$f":"name_dblRate_1 & \", \" & unit_tariff_double_rate_p","v":"мощность,  руб/Гкал"}]
[null,null,null,{"$f":"D24&\"2.\"","v":"1.3.2.2."},{"$f":"name_dblRate_2 & \", \" & unit_tariff_double_rate_c","v":"содержание,  тыс руб/Гкал/час в месяц"}]
[null,"f",null,{"$f":"D23&\"2.\"","v":"1.3.2.2."},{"$f":"IF(group_rates=\"\",\"\",IF(group_rates=TEHSHEET!$S$10,TEHSHEET!$R$11,\"\"))&\", \"&TEHSHEET!$T$5","v":", руб/м3"}]
[null,null,null,null,"Добавить поставщика"]
[null,null,null,null,"Добавить тариф"]
[null,null,null,"1.4.","Срок действия цен (тарифов)",{"$f":"\"с \"&periodStart & \" по \" & periodEnd & \" гг.\"","v":"с 01.01.2017 по 31.12.2018 гг."},null,"нет"]
[null,null,null,"1.5.","Долгосрочные параметры регулирования (в случае если их установление предусмотрено выбранным методом регулирования)*","http://rzd.ru/",null,"нет"]
[null,null,null,"1.6.",{"$f":"\"Необходимая валовая выручка на соответствующий период, в том числе с разбивкой по \" & IF(flag_NVV=\"да\",\"полугодиям, тыс руб:\", \"годам, тыс руб:\")","v":"Необходимая валовая выручка на соответствующий период, в том числе с разбивкой по годам, тыс руб:"},{"$f":"SUM(F33:F35)","v":13625.099999999999},null,"нет"]
["1.6.1","О",null,{"$f":"A33&\".\"","v":"1.6.1."},"С 01.01.2017 по 31.12.2017",6674.98,null,"нет"]
["1.6.2","О",null,{"$f":"A34&\".\"","v":"1.6.2."},"С 01.01.2018 по 31.12.2018",6950.12,null,"нет"]
[null,null,null,null,"Добавить НВВ"]
[null,null,null,"1.7.",{"$f":"\"Годовой объем полезного отпуска тепловой энергии (теплоносителя), \"&unit_tariff_useful_output","v":"Годовой объем полезного отпуска тепловой энергии (теплоносителя), тыс Гкал"},null,null,0]
["1.7.1","О",null,{"$f":"A37&\".\"","v":"1.7.1."},"С 01.01.2017 по 31.12.2017",3948.77,null,"нет"]
["1.7.2","О",null,{"$f":"A38&\".\"","v":"1.7.2."},"С 01.01.2018 по 31.12.2018",3948.77,null,"нет"]
[null,null,null,null,"Добавить объём"]
[null,null,null,"1.8.","Размер экономически обоснованных расходов, не учтенных при регулировании тарифов в предыдущий период регулирования (при их наличии), определенном в соответствии с законодательством Российской Федерации, тыс руб",0,null,"нет"]
[null,null,null,"2.","Информация о способах приобретения, стоимости и об объемах товаров, необходимых для производства регулируемых товаров и(или) оказания регулируемых услуг регулируемой организацией",null,null,0]
[null,null,null,"2.1.","Сведения о правовых актах, регламентирующих правила закупки (положение о закупках) в регулируемой организации","Распоряжение ОАО \"РЖД\" №2237р от 21.10.2013 г.,  Регламент к распоряжению №2237р от 21.10.2013 г.","https://tariff.eias.ru/disclo/get_file?p_guid=b1ecff60-f952-4413-af6d-f49bd77d4d0a","нет"]
[null,null,null,"2.2.","Сведения о месте размещения положения о закупках регулируемой организации","http://rzd.ru/","https://tariff.eias.ru/disclo/get_file?p_guid=47272643-28ff-45d2-b44d-7f689073d571","нет"]
[null,3,null,"2.3.","Сведения о планировании закупочных процедур и результатах их проведения","http://rzd.ru/","https://tariff.eias.ru/disclo/get_file?p_guid=47272643-28ff-45d2-b44d-7f689073d571","нет"]
[null,null,null,null,"Добавить сведения"]
[]
[null,null,null,"*","ФЗ 190 ст. 9 2. До 1 января 2016 года осуществляется поэтапный переход к регулированию тарифов на тепловую энергию (мощность), тарифов на услуги в сфере теплоснабжения, теплоноситель на основе долгосрочных параметров государственного регулирования цен (тарифов) в сфере теплоснабжения (с применением метода обеспечения доходности инвестированного капитала, или метода индексации установленных тарифов, или метода сравнения аналогов)."]

{"sheet":"Ссылки на публикации","index":9,"n_rows":15,"n_cols":8,"rows_kept":15,"cut":false,"hidden":false,"merged":[[10,0,11,0],[10,4,10,7],[12,0,13,0],[12,4,12,7],[4,3,4,7],[5,3,5,7]]}
[]
[]
[]
[]
[null,null,null,"Ссылки на публикации"]
[null,null,null,{"$f":"IF(org=0,\"Не определено\",org)","v":"Северо-Кавказская дирекция по тепловодоснабжению структурное подразделение Центральной дирекции по тепловодоснабжению - филиала ОАО \"РЖД\""}]
[]
[]
[null,null,null,"№ п/п","Содержание","Наименование сайта","Дата размещения информации","Адрес страницы сайта в сети \"Интернет\", на которой размещена информация"]
[null,null,null,"1","2","3","4","5"]
["1",null,null,{"$f":"A11","v":"1"},"Информация о способах приобретения, стоимости и объемах товаров, необходимых для производства регулируемых товаров и (или) оказания регулируемых услуг регулируемой организацией, содержит сведения о правовых актах, регламентирующих правила закупки (положение о закупках) в регулируемой организации, а также о месте размещения положения о закупках регулируемой организации, информации о планировании конкурсных процедур и результатах их проведения (п.26 Постановления Правительства Российской Федерации от 05 июля 2013 г. N 570 \"О стандартах раскрытия информации теплоснабжающими организациями, теплосетевыми организациями и органами регулирования\")"]
[null,null,null,{"$f":"A11&\".1\"","v":"1.1"},"Сайт организации в сети Интернет","http://skdtv.ru/","27.05.2016","http://skdtv.ru/"]
["2",null,null,{"$f":"A13","v":"2"},"Информация о предложении регулируемой организации об установлении тарифов в сфере теплоснабжения на очередной расчетный период регулирования (п.27 Постановления Правительства Российской Федерации от 05 июля 2013 г. N 570 \"О стандартах раскрытия информации теплоснабжающими организациями, теплосетевыми организациями и органами регулирования\")"]
[null,null,null,{"$f":"A13&\".1\"","v":"2.1"},"Сайт организации в сети Интернет","http://skdtv.ru/","27.05.2016","http://skdtv.ru/"]
[null,null,null,null,"Добавить"]

{"sheet":"Комментарии","index":10,"n_rows":13,"n_cols":5,"rows_kept":13,"cut":false,"hidden":false,"merged":[[6,3,6,4],[7,3,7,4]]}
[]
[]
[]
[]
[]
[]
[null,null,null,"Комментарии"]
[null,null,null,{"$f":"IF(org=0,\"Не определено\",org)","v":"Северо-Кавказская дирекция по тепловодоснабжению структурное подразделение Центральной дирекции по тепловодоснабжению - филиала ОАО \"РЖД\""}]
[]
[null,null,null,"№ п/п","Комментарий"]
[null,null,null,"1","2"]
[null,null,null,0]
[null,null,null,null,"Добавить"]

{"sheet":"Проверка","index":11,"n_rows":5,"n_cols":4,"rows_kept":5,"cut":false,"hidden":false,"merged":[[1,1,1,3]]}
[]
[null,"Результат проверки"]
[]
[null,"Ссылка","Причина","Статус"]
[null,"Стандарты!G31","Не указано значение!","Предупреждение"]

{"sheet":"AllSheetsInThisWorkbook","index":12,"n_rows":24,"n_cols":2,"rows_kept":24,"cut":false,"hidden":true,"merged":[]}
["Расчетные листы","Скрытые листы"]
["Инструкция","modProv"]
["Лог обновления","modList00"]
["Титульный","modList01"]
["Список МО","modList02"]
["Стандарты","AllSheetsInThisWorkbook"]
["Ссылки на публикации","TEHSHEET"]
["Комментарии","et_union_hor"]
["Проверка","et_union_vert"]
[null,"modInfo"]
[null,"modRegion"]
[null,"modReestr"]
[null,"modfrmReestr"]
[null,"modUpdTemplMain"]
[null,"REESTR_ORG"]
[null,"modClassifierValidate"]
[null,"modHyp"]
[null,"modList03"]
[null,"modfrmDateChoose"]
[null,"modComm"]
[null,"modThisWorkbook"]
[null,"REESTR_MO"]
[null,"modfrmReestrMR"]
[null,"modfrmCheckUpdates"]

{"sheet":"TEHSHEET","index":13,"n_rows":85,"n_cols":23,"rows_kept":85,"cut":false,"hidden":true,"merged":[[0,20,0,21],[0,19,1,19],[0,22,1,22]]}
["REGION",null,"year_list","logical","Месяц\n(MONTH)","Квартал\n(QUARTER)","Месяц\n(kind_of_publication)","НДС\n/kind_of_NDS/","Номер СЦХВ(СЦВО)\n/SKI_number/","Единица измерения объема оказываемых услуг ГВС\n/kind_of_unit_GVS/","Метод регулирования\n/kind_of_control_method/",null,null,"версия шаблона\n (DocProp_Version)","6.0",null,null,null,"виды групп товаров\n/kind_group_rates/","Одноставочный","Двухставочный",null,"Полезный отпуск"]
["Алтайский край",null,2013,"да","январь","I квартал","На официальном сайте организации","общий","1","тыс.куб.м/сутки","метод экономически обоснованных расходов (затрат)",null,null,"код шаблона\n(DocProp_TemplateCode)","JKH.OPEN.INFO.QUARTER.GVS",null,null,null,null,null,{"$f":"IF(group_rates=$S$10,\"ставка за тепловую энергию\",\"мощность\")","v":"мощность"},{"$f":"IF(group_rates=$S$10,\"ставка за содержание тепловой мощности\",\"содержание\")","v":"содержание"}]
["Амурская область",null,2014,"нет","февраль","II квартал","На сайте регулирующего органа","общий с учетом освобождения от уплаты НДС","2","Гкал/час","метод индексации установленных тарифов",null,null,"сфера\n(TSphere)","ГВС",null,null,null,"единица измерения для листа Стандарты\n/unit_tariff/"," руб/Гкал"," руб/Гкал"," тыс руб/Гкал/час в месяц","тыс Гкал"]
["Архангельская область",null,2015,null,"март","III квартал",null,"специальный (упрощенная система налогообложения, система налогообложения для сельскохозяйственных товаропроизводителей)","3","куб.м/час","метод обеспечения доходности инвестированного капитала",null,null,"сфера(латиница)\n(TSphere_trans)","GVS",null,null,"тариф на тепловую энергию (мощность)","тариф на тепловую энергию (мощность)"," руб/Гкал"," руб/Гкал"," тыс руб/Гкал/час в месяц","тыс Гкал"]
["Астраханская область",null,2016,null,"апрель","IV квартал",null,null,"4",null,"метод сравнения аналогов",null,null,"сфера расширено\n(TSphere_full)","горячего водоснабжения",null,null,"тариф на теплоноситель","тариф на теплоноситель","руб/м3","-","-","тыс м3"]
["Белгородская область",null,2017,null,"май",null,null,"НДС\n/kind_of_NDS_tariff/","5",null,null,null,null,null,null,null,null,"тариф на услуги по передаче тепловой энергии","тариф на услуги по передаче тепловой энергии","руб/Гкал"," руб/Гкал"," тыс руб/Гкал/час в месяц","тыс Гкал"]
["Брянская область",null,null,null,"июнь",null,null,"тариф указан с НДС для плательщиков НДС","6",null,null,null,null,null,null,null,null,"тариф на услуги по передаче теплоносителя","тариф на услуги по передаче теплоносителя","руб/Гкал"," руб/Гкал"," тыс руб/Гкал/час в месяц","тыс Гкал"]
["Владимирская область",null,null,null,"июль",null,null,"тариф указан без НДС для плательщиков НДС","7",null,null,null,null,null,null,null,null,"плата за услуги по поддержанию резервной тепловой мощности при отсутствии потребления тепловой энергии","плата за услуги по поддержанию резервной тепловой мощности при отсутствии потребления тепловой энергии","тыс руб/Гкал/час в месяц","-","-","тыс Гкал"]
["Волгоградская область",null,null,null,"август",null,null,null,"8",null,null,null,null,null,null,null,null,"плата за подключение (технологическое присоединение) к системе теплоснабжения","плата за подключение (технологическое присоединение) к системе теплоснабжения","тыс руб/Гкал/час ","-","-","тыс Гкал"]
["Вологодская область",null,null,null,"сентябрь",null,null,"НДС для прочих режимов налогообложения\n/kind_of_NDS_tariff_etc/","9",null,null,null,null,null,null,null,null,"компонент на тепловую энергию","тариф на горячую воду, поставляемую с использованием открытых систем теплоснабжения (горячего водоснабжения)","руб/Гкал","руб/Гкал ","тыс руб/Гкал/час в месяц","тыс м3"]
["Воронежская область",null,null,null,"октябрь",null,null,"тариф для организаций не являющихся плательщиками НДС","10",null,null,null,null,null,null,null,null,"компонент на теплоноситель"]
["г.Байконур",null,null,null,"ноябрь",null,null,null,"11"]
["г. Москва",null,null,null,"декабрь",null,null,null,"12"]
["г.Санкт-Петербург",null,null,null,null,null,null,null,"13"]
["Еврейская автономная область",null,null,null,null,null,null,null,"14"]
["Забайкальский край",null,null,null,null,null,null,null,"15"]
["Ивановская область",null,null,null,null,null,null,null,"16"]
["Иркутская область",null,null,null,null,null,null,null,"17"]
["Кабардино-Балкарская республика",null,null,null,null,null,null,null,"18"]
["Калининградская область",null,null,null,null,null,null,null,"19"]
["Калужская область",null,null,null,null,null,null,null,"20"]
["Камчатский край"]
["Карачаево-Черкесская республика"]
["Кемеровская область"]
["Кировская область"]
["Костромская область"]
["Краснодарский край"]
["Красноярский край"]
["Курганская область"]
["Курская область"]
["Ленинградская область"]
["Липецкая область"]
["Магаданская область"]
["Московская область"]
["Мурманская область"]
["Ненецкий автономный округ"]
["Нижегородская область"]
["Новгородская область"]
["Новосибирская область"]
["Омская область"]
["Оренбургская область"]
["Орловская область"]
["Пензенская область"]
["Пермский край"]
["Приморский край"]
["Псковская область"]
["Республика Адыгея"]
["Республика Алтай"]
["Республика Башкортостан"]
["Республика Бурятия"]
["Республика Дагестан"]
["Республика Ингушетия"]
["Республика Калмыкия"]
["Республика Карелия"]
["Республика Коми"]
["Республика Марий Эл"]
["Республика Мордовия"]
["Республика Саха (Якутия)"]
["Республика Северная Осетия-Алания"]
["Республика Татарстан"]
["Республика Тыва"]
["Республика Хакасия"]
["Ростовская область"]
["Рязанская область"]
["Самарская область"]
["Саратовская область"]
["Сахалинская область"]
["Свердловская область"]
["Смоленская область"]
["Ставропольский край"]
["Тамбовская область"]
["Тверская область"]
["Томская область"]
["Тульская область"]
["Тюменская область"]
["Удмуртская республика"]
["Ульяновская область"]
["Хабаровский край"]
["Ханты-Мансийский автономный округ"]
["Челябинская область"]
["Чеченская республика"]
["Чувашская республика"]
["Чукотский автономный округ"]
["Ямало-Ненецкий автономный округ"]
["Ярославская область"]

{"sheet":"et_union_hor","index":14,"n_rows":52,"n_cols":7,"rows_kept":52,"cut":false,"hidden":true,"merged":[[27,0,32,0],[15,0,16,0],[3,4,4,4],[3,3,4,3],[15,4,15,7]]}
[]
["et_List01","et_List01_1"]
[]
[null,null,null,null,null,1]
[null,null,null,null,null,null,"Добавить МО"]
[]
[]
["et_Comm"]
[]
[]
[]
[]
["et_List03"]
[]
[]
[null,null,null,{"$f":"A16","v":0}]
[null,null,null,{"$f":"A16&\".1\"","v":".1"},"Сайт организации в сети Интернет"]
[]
[]
[]
["et_List02_1"]
[]
[null,null,null,{"$f":"A23&\".\"","v":"."},{"$f":"\"С \"&periodStart & \" по \" & periodEnd","v":"С 01.01.2017 по 31.12.2018"}]
[]
[]
["et_List02_2"]
[]
[null,null,null,{"$f":"A28&\".\"","v":"."},{"$f":"\"С \"&periodStart & \" по \" & periodEnd & IF(double_rate_tariff=\"да\",,\", \"&unit_tariff_single_rate)","v":"С 01.01.2017 по 31.12.2018,  руб/Гкал"}]
[null,null,null,{"$f":"D28&IF(group_rates=tariff_GVS,\"1.\",\"\")","v":"."},{"$f":"IF(group_rates=\"\",\"\",IF(group_rates=TEHSHEET!$S$10,TEHSHEET!$R$10,group_rates)) & IF(double_rate_tariff=\"да\",,\", \"&unit_tariff_single_rate)","v":"тариф на тепловую энергию (мощность),  руб/Гкал"}]
[null,null,null,{"$f":"D29&\"1.\"","v":".1."},{"$f":"name_dblRate_1 & \", \" & unit_tariff_double_rate_p","v":"мощность,  руб/Гкал"}]
[null,null,null,{"$f":"D29&\"2.\"","v":".2."},{"$f":"name_dblRate_2 & \", \" & unit_tariff_double_rate_c","v":"содержание,  тыс руб/Гкал/час в месяц"}]
[null,"f",null,{"$f":"D28&\"2.\"","v":".2."},{"$f":"IF(group_rates=\"\",\"\",IF(group_rates=TEHSHEET!$S$10,TEHSHEET!$R$11,\"\"))&\", \"&TEHSHEET!$T$5","v":", руб/м3"}]
[null,null,null,null,"Добавить поставщика"]
[]
["et_List02_6"]
[]
[null,null,null,{"$f":"B37&\".\"","v":"."}]
[]
[]
["et_List02_3"]
[]
[null,null,null,{"$f":"A42&\".\"","v":"."},{"$f":"\"С \"&periodStart & \" по \" & periodEnd","v":"С 01.01.2017 по 31.12.2018"}]
[]
[]
["et_List02_4"]
[]
[null,null,null,{"$f":"A47&\".\"","v":"."},{"$f":"\"С \"&periodStart & \" по \" & periodEnd","v":"С 01.01.2017 по 31.12.2018"}]
[]
[]
["et_List02_5"]
[]
[null,null,null,{"$f":"A52&\".\"","v":"."}]

{"sheet":"et_union_vert","index":15,"n_rows":0,"n_cols":0,"rows_kept":0,"cut":false,"hidden":true,"merged":[]}

{"sheet":"modInfo","index":16,"n_rows":17,"n_cols":2,"rows_kept":17,"cut":false,"hidden":true,"merged":[]}
[null,"Титульный"]
[null,"Для выбора того или иного источника публикации выполните двойной щелчок по синей ячейке напротив соответствующего источника.\nВНИМАНИЕ! Если Вы снимаете галочку с пункта, то будут скрыты и очищены соответствующие строки на листе \"Ссылки на публикации\"!\n\nОпубликование перечисленных в шаблоне показателей на сайте организации в сети Интернет и в печатных изданиях не обязательно, если данный шаблон предоставлен по системе ЕИАС (региональный сегмент)."]
[null,"Обязательное опубликование на официальном сайте органа исполнительной власти субъекта Российской Федерации в области государственного регулирования цен (тарифов), и (или) на официальном сайте органа местного самоуправления поселения или городского округа в случае их наделения в соответствии с законом субъекта Российской Федерации полномочиями по государственному регулированию цен (тарифов)предусмотрено пунктом 3 (а) постановления Правительства №570 от 05.07.2013 г."]
[null,"Задайте период регулирования, выбрав даты начала и окончания очередного периода регулирования из календаря (иконка справа от указанной ячейки), либо введите дату непосредственно в ячейку в формате - 'ДД.ММ.ГГГГ'"]
[null,"Шаблон заполняется раздельно по каждому виду тарифа"]
[null,"Ссылки на публикации"]
[null,"Вводите адрес сайта, не нарушая цвет ячейки /если копируете гиперссылку из браузера, то выполните двойной щелчок по ячейке и только после этого можете вставить скопированный элемент/"]
[null,"Обосновывающие материалы (документы) необходимо загружать с помощью \"ЕИАС Мониторинг\". Ссылка на инструкцию по загрузке обосновывающих материалов (документов) расположена на листе 'Инструкция' в п.'Методология заполнения'.\n\nВвводите ссылку, не нарушая цвет ячейки /если копируете гиперссылку из браузера, то выполните двойной щелчок по ячейке и только после этого можете вставить скопированный элемент/."]
[null,"Если для какого-либо пункта графы 'Наименование источника (сайта или печатного издания)' информация не раскрывалась, то в соответствующем поле укажите - 'не раскрывалась'"]
[null,"Список МО"]
[null,"В случае, если тариф не дифференцируется по системам теплоснабжения, перечислите все муниципальные районы, в которых организация осуществляет услуги в сфере теплоснабжения"]
[null,"В случае, если тариф не дифференцируется по системам теплоснабжения, перечислите все муниципальные образования, в которых организация осуществляет услуги в сфере теплоснабжения"]
[null,"Признак дифференциации тарифа"]
[null,"В случае, если тариф не дифференцируется по системам теплоснабжения, укажите '1'. Введите значение от 1 до 100, чтобы указать очередной условный порядковый номер системы теплоснабжения"]
[null,"Стандарты"]
[null,"В качестве примечания Вы можете указать единицу измерения"]
[null,{"$f":"\"Укажите в ячейке \" & ADDRESS(ROW(Стандарты!F31),COLUMN(Стандарты!F31),4,TRUE) & \", ссылку на сведения о долгосрочных параметрах регулирования, размещенные в сети Интернет, либо укажите в ячейке \" & ADDRESS(ROW(Стандарты!G31),COLUMN(Стандарты!G31),4,TRUE) & \" ссылку на материалы Хранилища\"","v":"Укажите в ячейке F31, ссылку на сведения о долгосрочных параметрах регулирования, размещенные в сети Интернет, либо укажите в ячейке G31 ссылку на материалы Хранилища"}]

{"sheet":"modRegion","index":17,"n_rows":0,"n_cols":0,"rows_kept":0,"cut":false,"hidden":true,"merged":[]}

{"sheet":"modReestr","index":18,"n_rows":0,"n_cols":0,"rows_kept":0,"cut":false,"hidden":true,"merged":[]}

{"sheet":"modfrmReestr","index":19,"n_rows":0,"n_cols":0,"rows_kept":0,"cut":false,"hidden":true,"merged":[]}

{"sheet":"modUpdTemplMain","index":20,"n_rows":0,"n_cols":0,"rows_kept":0,"cut":false,"hidden":true,"merged":[]}

{"sheet":"REESTR_ORG","index":21,"n_rows":385,"n_cols":12,"rows_kept":385,"cut":false,"hidden":true,"merged":[]}
["№","NSRF","MR_NAME","OKTMO_MR_NAME","MO_NAME","OKTMO_NAME","RST_ORG_ID","ORG_NAME","INN_NAME","KPP_NAME","VDET_NAME"]
[1,"Ставропольский край","Александровский муниципальный район","07602000","Александровский сельсовет","07602402","28812805","ГБОУ СПО АСХ Колледж","2601002535","260101001","производство (некомбинированная выработка)+передача+сбыт","WARM"]
[2,"Ставропольский край","Александровский муниципальный район","07602000","Александровский сельсовет","07602402","26355225","ГУП СК \"Крайтеплоэнерго\"","2635060510","263501001","производство (некомбинированная выработка)+передача+сбыт","WARM"]
[3,"Ставропольский край","Александровский муниципальный район","07602000","Александровский сельсовет","07602402","26526815","МУП ЖКХ Александровского района","2601004596","260101001","производство (некомбинированная выработка)","WARM"]
[4,"Ставропольский край","Александровский муниципальный район","07602000","Александровский сельсовет","07602402","26526815","МУП ЖКХ Александровского района","2601004596","260101001","производство (некомбинированная выработка)+передача+сбыт","WARM"]
[5,"Ставропольский край","Александровский муниципальный район","07602000","Александровский сельсовет","07602402","27507656","ОАО \"РЭУ\" Филиал Владикавказский","7714783092","151543001","производство (некомбинированная выработка)+передача+сбыт","WARM"]
[6,"Ставропольский край","Александровский муниципальный район","07602000","Александровский сельсовет","07602402","26893305","ООО \"Сфера\"","2601009756","260101001","производство (некомбинированная выработка)+передача+сбыт","WARM"]
[7,"Ставропольский край","Александровский муниципальный район","07602000","Александровский сельсовет","07602402","26891277","ООО \"Теплый дом\"","2601009690","260101001","производство (некомбинированная выработка)+передача+сбыт","WARM"]
[8,"Ставропольский край","Александровский муниципальный район","07602000","Александровский сельсовет","07602402","30356084","Обособленное подразделение \"Ставропольское\" АО \"ГУ ЖКХ\"","5116000922","263445001","производство (некомбинированная выработка)+сбыт","WARM"]
[9,"Ставропольский край","Александровский муниципальный район","07602000","Калиновский сельсовет","07602407","26526815","МУП ЖКХ Александровского района","2601004596","260101001","производство (некомбинированная выработка)","WARM"]
[10,"Ставропольский край","Александровский муниципальный район","07602000","Калиновский сельсовет","07602407","26526815","МУП ЖКХ Александровского района","2601004596","260101001","производство (некомбинированная выработка)+передача+сбыт","WARM"]
[11,"Ставропольский край","Александровский муниципальный район","07602000","Калиновский сельсовет","07602407","26526815","МУП ЖКХ Александровского района","2601004596","260101001","производство (некомбинированная выработка)+сбыт","WARM"]
[12,"Ставропольский край","Александровский муниципальный район","07602000","Калиновский сельсовет","07602407","26893305","ООО \"Сфера\"","2601009756","260101001","производство (некомбинированная выработка)+передача+сбыт","WARM"]
[13,"Ставропольский край","Александровский муниципальный район","07602000","Круглолесский сельсовет","07602410","26526815","МУП ЖКХ Александровского района","2601004596","260101001","производство (некомбинированная выработка)","WARM"]
[14,"Ставропольский край","Александровский муниципальный район","07602000","Круглолесский сельсовет","07602410","26526815","МУП ЖКХ Александровского района","2601004596","260101001","производство (некомбинированная выработка)+передача+сбыт","WARM"]
[15,"Ставропольский край","Александровский муниципальный район","07602000","Круглолесский сельсовет","07602410","26526815","МУП ЖКХ Александровского района","2601004596","260101001","производство (некомбинированная выработка)+сбыт","WARM"]
[16,"Ставропольский край","Александровский муниципальный район","07602000","Круглолесский сельсовет","07602410","26893305","ООО \"Сфера\"","2601009756","260101001","производство (некомбинированная выработка)+передача+сбыт","WARM"]
[17,"Ставропольский край","Александровский муниципальный район","07602000","Новокавказский сельсовет","07602413","26526815","МУП ЖКХ Александровского района","2601004596","260101001","производство (некомбинированная выработка)","WARM"]
[18,"Ставропольский край","Александровский муниципальный район","07602000","Новокавказский сельсовет","07602413","26526815","МУП ЖКХ Александровского района","2601004596","260101001","производство (некомбинированная выработка)+передача+сбыт","WARM"]
[19,"Ставропольский край","Александровский муниципальный район","07602000","Новокавказский сельсовет","07602413","26526815","МУП ЖКХ Александровского района","2601004596","260101001","производство (некомбинированная выработка)+сбыт","WARM"]
[20,"Ставропольский край","Александровский муниципальный район","07602000","Новокавказский сельсовет","07602413","26893305","ООО \"Сфера\"","2601009756","260101001","производство (некомбинированная выработка)+передача+сбыт","WARM"]
[21,"Ставропольский край","Александровский муниципальный район","07602000","Саблинский сельсовет","07602416","26526815","МУП ЖКХ Александровского района","2601004596","260101001","производство (некомбинированная выработка)","WARM"]
[22,"Ставропольский край","Александровский муниципальный район","07602000","Саблинский сельсовет","07602416","26526815","МУП ЖКХ Александровского района","2601004596","260101001","производство (некомбинированная выработка)+передача+сбыт","WARM"]
[23,"Ставропольский край","Александровский муниципальный район","07602000","Саблинский сельсовет","07602416","26526815","МУП ЖКХ Александровского района","2601004596","260101001","производство (некомбинированная выработка)+сбыт","WARM"]
[24,"Ставропольский край","Александровский муниципальный район","07602000","Саблинский сельсовет","07602416","26893305","ООО \"Сфера\"","2601009756","260101001","производство (некомбинированная выработка)+передача+сбыт","WARM"]
[25,"Ставропольский край","Александровский муниципальный район","07602000","Село Грушевское","07602404","26526815","МУП ЖКХ Александровского района","2601004596","260101001","производство (некомбинированная выработка)","WARM"]
[26,"Ставропольский край","Александровский муниципальный район","07602000","Село Грушевское","07602404","26526815","МУП ЖКХ Александровского района","2601004596","260101001","производство (некомбинированная выработка)+передача+сбыт","WARM"]
[27,"Ставропольский край","Александровский муниципальный район","07602000","Село Грушевское","07602404","26526815","МУП ЖКХ Александровского района","2601004596","260101001","производство (некомбинированная выработка)+сбыт","WARM"]
[28,"Ставропольский край","Александровский муниципальный район","07602000","Село Грушевское","07602404","26893305","ООО \"Сфера\"","2601009756","260101001","производство (некомбинированная выработка)+передача+сбыт","WARM"]
[29,"Ставропольский край","Александровский муниципальный район","07602000","Село Северное","07602419","26526815","МУП ЖКХ Александровского района","2601004596","260101001","производство (некомбинированная выработка)","WARM"]
[30,"Ставропольский край","Александровский муниципальный район","07602000","Село Северное","07602419","26526815","МУП ЖКХ Александровского района","2601004596","260101001","производство (некомбинированная выработка)+передача+сбыт","WARM"]
[31,"Ставропольский край","Александровский муниципальный район","07602000","Село Северное","07602419","26526815","МУП ЖКХ Александровского района","2601004596","260101001","производство (некомбинированная выработка)+сбыт","WARM"]
[32,"Ставропольский край","Александровский муниципальный район","07602000","Село Северное","07602419","26893305","ООО \"Сфера\"","2601009756","260101001","производство (некомбинированная выработка)+передача+сбыт","WARM"]
[33,"Ставропольский край","Александровский муниципальный район","07602000","Средненский сельсовет","07602422","26526815","МУП ЖКХ Александровского района","2601004596","260101001","Передача+Сбыт","WARM"]
[34,"Ставропольский край","Александровский муниципальный район","07602000","Средненский сельсовет","07602422","26526815","МУП ЖКХ Александровского района","2601004596","260101001","производство (некомбинированная выработка)+передача+сбыт","WARM"]
[35,"Ставропольский край","Александровский муниципальный район","07602000","Средненский сельсовет","07602422","26893305","ООО \"Сфера\"","2601009756","260101001","производство (некомбинированная выработка)+передача+сбыт","WARM"]
[36,"Ставропольский край","Андроповский муниципальный район","07632000","Водораздельный сельсовет","07632402","26355225","ГУП СК \"Крайтеплоэнерго\"","2635060510","263501001","производство (некомбинированная выработка)+передача+сбыт","WARM"]
[37,"Ставропольский край","Андроповский муниципальный район","07632000","Казинский сельсовет","07632406","26355225","ГУП СК \"Крайтеплоэнерго\"","2635060510","263501001","производство (некомбинированная выработка)+передача+сбыт","WARM"]
[38,"Ставропольский край","Андроповский муниципальный район","07632000","Курсавский сельсовет","07632410","26838066","АО \"РЭУ\"","7714783092","774501001","производство (некомбинированная выработка)+передача+сбыт","WARM"]
[39,"Ставропольский край","Андроповский муниципальный район","07632000","Курсавский сельсовет","07632410","26355225","ГУП СК \"Крайтеплоэнерго\"","2635060510","263501001","производство (некомбинированная выработка)+передача+сбыт","WARM"]
[40,"Ставропольский край","Андроповский муниципальный район","07632000","Курсавский сельсовет","07632410","30356084","Обособленное подразделение \"Ставропольское\" АО \"ГУ ЖКХ\"","5116000922","263445001","Передача+Сбыт","WARM"]
[41,"Ставропольский край","Андроповский муниципальный район","07632000","Село Крымгиреевское","07632408","26355225","ГУП СК \"Крайтеплоэнерго\"","2635060510","263501001","производство (некомбинированная выработка)+передача+сбыт","WARM"]
[42,"Ставропольский край","Андроповский муниципальный район","07632000","Солуно-Дмитриевский сельсовет","07632416","26355225","ГУП СК \"Крайтеплоэнерго\"","2635060510","263501001","производство (некомбинированная выработка)+передача+сбыт","WARM"]
[43,"Ставропольский край","Андроповский муниципальный район","07632000","Солуно-Дмитриевский сельсовет","07632416","26355170","ООО \"ККЭБСЕ\" филиал в селе Солуно-Дмитриевское","7701215046","525350001","производство (некомбинированная выработка)+передача+сбыт","WARM"]
[44,"Ставропольский край","Андроповский муниципальный район","07632000","Янкульский сельсовет","07632422","26355225","ГУП СК \"Крайтеплоэнерго\"","2635060510","263501001","производство (некомбинированная выработка)+передача+сбыт","WARM"]
[45,"Ставропольский край","Апанасенковский муниципальный район","07605000","Дербетовский сельсовет","07605416","26355225","ГУП СК \"Крайтеплоэнерго\"","2635060510","263501001","производство (некомбинированная выработка)+передача+сбыт","WARM"]
[46,"Ставропольский край","Апанасенковский муниципальный район","07605000","Село Дивное","07605419","26355225","ГУП СК \"Крайтеплоэнерго\"","2635060510","263501001","производство (некомбинированная выработка)+передача+сбыт","WARM"]
[47,"Ставропольский край","Апанасенковский муниципальный район","07605000","Село Дивное","07605419","26355169","МУП \"ЖКХ\" Апанасенковского муниципального района Ставропольского края","2602004366","260201001","производство (некомбинированная выработка)+передача+сбыт","WARM"]
[48,"Ставропольский край","Апанасенковский муниципальный район","07605000","Село Дивное","07605419","26816056","Северо-Кавказская дирекция по тепловодоснабжению структурное подразделение Центральной дирекции по тепловодоснабжению - филиала ОАО \"РЖД\"","7708503727","616745019","производство (некомбинированная выработка)+передача+сбыт","WARM"]
[49,"Ставропольский край","Арзгирский муниципальный район","07607000","Арзгирский сельсовет","07607402","26355171","МУП КХ Арзгирского района","2604000247","260401001","производство (некомбинированная выработка)+передача+сбыт","WARM"]
[50,"Ставропольский край","Арзгирский муниципальный район","07607000","Арзгирский сельсовет","07607402","27507656","ОАО \"РЭУ\" Филиал Владикавказский","7714783092","151543001","производство (некомбинированная выработка)+передача+сбыт","WARM"]
[51,"Ставропольский край","Арзгирский муниципальный район","07607000","Арзгирский сельсовет","07607402","30356084","Обособленное подразделение \"Ставропольское\" АО \"ГУ ЖКХ\"","5116000922","263445001","производство (некомбинированная выработка)+сбыт","WARM"]
[52,"Ставропольский край","Арзгирский муниципальный район","07607000","Новоромановский сельсовет","07607404","30376996","Тестовая организация ТЕСТ","7734520599","773401001","Передача","WARM"]
[53,"Ставропольский край","Благодарненский муниципальный район","07610000","Cело Елизаветинское","07610410","26355225","ГУП СК \"Крайтеплоэнерго\"","2635060510","263501001","производство (некомбинированная выработка)+передача+сбыт","WARM"]
[54,"Ставропольский край","Благодарненский муниципальный район","07610000","Александрийский сельсовет","07610402","26355225","ГУП СК \"Крайтеплоэнерго\"","2635060510","263501001","производство (некомбинированная выработка)+передача+сбыт","WARM"]
[55,"Ставропольский край","Благодарненский муниципальный район","07610000","Город Благодарный","07610101","26355225","ГУП СК \"Крайтеплоэнерго\"","2635060510","263501001","производство (некомбинированная выработка)+передача+сбыт","WARM"]
[56,"Ставропольский край","Благодарненский муниципальный район","07610000","Город Благодарный","07610101","27507656","ОАО \"РЭУ\" Филиал Владикавказский","7714783092","151543001","производство (некомбинированная выработка)+передача+сбыт","WARM"]
[57,"Ставропольский край","Благодарненский муниципальный район","07610000","Город Благодарный","07610101","30356084","Обособленное подразделение \"Ставропольское\" АО \"ГУ ЖКХ\"","5116000922","263445001","производство (некомбинированная выработка)+сбыт","WARM"]
[58,"Ставропольский край","Благодарненский муниципальный район","07610000","Город Благодарный","07610101","26322297","Северо-Кавказский филиал ООО \"Газпром энерго\"","7736186950","263602001","Теплоноситель - Производство","WARM"]
[59,"Ставропольский край","Благодарненский муниципальный район","07610000","Город Благодарный","07610101","26322297","Северо-Кавказский филиал ООО \"Газпром энерго\"","7736186950","263602001","производство (некомбинированная выработка)+передача","WARM"]
[60,"Ставропольский край","Благодарненский муниципальный район","07610000","Город Благодарный","07610101","26322297","Северо-Кавказский филиал ООО \"Газпром энерго\"","7736186950","263602001","производство (некомбинированная выработка)+передача+сбыт","WARM"]
[61,"Ставропольский край","Благодарненский муниципальный район","07610000","Город Благодарный","07610101","30376996","Тестовая организация ТЕСТ","7734520599","773401001","Передача","WARM"]
[62,"Ставропольский край","Благодарненский муниципальный район","07610000","Каменнобалковский сельсовет","07610413","26355225","ГУП СК \"Крайтеплоэнерго\"","2635060510","263501001","производство (некомбинированная выработка)+передача+сбыт","WARM"]
[63,"Ставропольский край","Благодарненский муниципальный район","07610000","Красноключевский сельсовет","07610416","26355225","ГУП СК \"Крайтеплоэнерго\"","2635060510","263501001","производство (некомбинированная выработка)+передача+сбыт","WARM"]
[64,"Ставропольский край","Благодарненский муниципальный район","07610000","Село Алексеевское","07610404","26355225","ГУП СК \"Крайтеплоэнерго\"","2635060510","263501001","производство (некомбинированная выработка)+передача+сбыт","WARM"]
[65,"Ставропольский край","Благодарненский муниципальный район","07610000","Село Бурлацкое","07610407","26355225","ГУП СК \"Крайтеплоэнерго\"","2635060510","263501001","производство (некомбинированная выработка)+передача+сбыт","WARM"]
[66,"Ставропольский край","Благодарненский муниципальный район","07610000","Село Шишкино","07610427","26355225","ГУП СК \"Крайтеплоэнерго\"","2635060510","263501001","производство (некомбинированная выработка)+передача+сбыт","WARM"]
[67,"Ставропольский край","Благодарненский муниципальный район","07610000","Ставропольский сельсовет","07610425","26355225","ГУП СК \"Крайтеплоэнерго\"","2635060510","263501001","производство (некомбинированная выработка)+передача+сбыт","WARM"]
[68,"Ставропольский край","Буденновский муниципальный район","07612000","Архиповский сельсовет","07612404","26355225","ГУП СК \"Крайтеплоэнерго\"","2635060510","263501001","производство (некомбинированная выработка)+передача+сбыт","WARM"]
[69,"Ставропольский край","Буденновский муниципальный район","07612000","Город Буденновск","07612101","26838066","АО \"РЭУ\"","7714783092","774501001","производство (некомбинированная выработка)+передача+сбыт","WARM"]
[70,"Ставропольский край","Буденновский муниципальный район","07612000","Город Буденновск","07612101","26355225","ГУП СК \"Крайтеплоэнерго\"","2635060510","263501001","производство (некомбинированная выработка)+передача+сбыт","WARM"]
[71,"Ставропольский край","Буденновский муниципальный район","07612000","Город Буденновск","07612101","27507656","ОАО \"РЭУ\" Филиал Владикавказский","7714783092","151543001","производство (некомбинированная выработка)+передача+сбыт","WARM"]
[72,"Ставропольский край","Буденновский муниципальный район","07612000","Город Буденновск","07612101","27567409","ООО \"ЛУКОЙЛ-Ставропольэнерго\"","2624033219","262845001","Передача+Сбыт","WARM"]
[73,"Ставропольский край","Буденновский муниципальный район","07612000","Город Буденновск","07612101","27567409","ООО \"ЛУКОЙЛ-Ставропольэнерго\"","2624033219","262845001","производство (некомбинированная выработка)+передача+сбыт","WARM"]
[74,"Ставропольский край","Буденновский муниципальный район","07612000","Город Буденновск","07612101","27567409","ООО \"ЛУКОЙЛ-Ставропольэнерго\"","2624033219","262845001","производство комбинированная выработка","WARM"]
[75,"Ставропольский край","Буденновский муниципальный район","07612000","Город Буденновск","07612101","30356084","Обособленное подразделение \"Ставропольское\" АО \"ГУ ЖКХ\"","5116000922","263445001","производство (некомбинированная выработка)+передача+сбыт","WARM"]
[76,"Ставропольский край","Буденновский муниципальный район","07612000","Город Буденновск","07612101","26816056","Северо-Кавказская дирекция по тепловодоснабжению структурное подразделение Центральной дирекции по тепловодоснабжению - филиала ОАО \"РЖД\"","7708503727","616745019","производство (некомбинированная выработка)+передача+сбыт","WARM"]
[77,"Ставропольский край","Буденновский муниципальный район","07612000","Искровский сельсовет","07612407","26355225","ГУП СК \"Крайтеплоэнерго\"","2635060510","263501001","производство (некомбинированная выработка)+передача+сбыт","WARM"]
[78,"Ставропольский край","Буденновский муниципальный район","07612000","Краснооктябрьский сельсовет","07612409","26355225","ГУП СК \"Крайтеплоэнерго\"","2635060510","263501001","производство (некомбинированная выработка)+передача+сбыт","WARM"]
[79,"Ставропольский край","Буденновский муниципальный район","07612000","Краснооктябрьский сельсовет","07612409","30376996","Тестовая организация ТЕСТ","7734520599","773401001","Передача","WARM"]
[80,"Ставропольский край","Буденновский муниципальный район","07612000","Новожизненский сельсовет","07612410","26355225","ГУП СК \"Крайтеплоэнерго\"","2635060510","263501001","производство (некомбинированная выработка)+передача+сбыт","WARM"]
[81,"Ставропольский край","Буденновский муниципальный район","07612000","Новожизненский сельсовет","07612410","30356084","Обособленное подразделение \"Ставропольское\" АО \"ГУ ЖКХ\"","5116000922","263445001","производство (некомбинированная выработка)+сбыт","WARM"]
[82,"Ставропольский край","Буденновский муниципальный район","07612000","Орловский сельсовет","07612413","26355225","ГУП СК \"Крайтеплоэнерго\"","2635060510","263501001","производство (некомбинированная выработка)+передача+сбыт","WARM"]
[83,"Ставропольский край","Буденновский муниципальный район","07612000","Покойненский сельсовет","07612416","26355225","ГУП СК \"Крайтеплоэнерго\"","2635060510","263501001","производство (некомбинированная выработка)+передача+сбыт","WARM"]
[84,"Ставропольский край","Буденновский муниципальный район","07612000","Покойненский сельсовет","07612416","30356084","Обособленное подразделение \"Ставропольское\" АО \"ГУ ЖКХ\"","5116000922","263445001","производство (некомбинированная выработка)+сбыт","WARM"]
[85,"Ставропольский край","Буденновский муниципальный район","07612000","Преображенский сельсовет","07612420","26355225","ГУП СК \"Крайтеплоэнерго\"","2635060510","263501001","производство (некомбинированная выработка)+передача+сбыт","WARM"]
[86,"Ставропольский край","Буденновский муниципальный район","07612000","Село Архангельское","07612402","26355225","ГУП СК \"Крайтеплоэнерго\"","2635060510","263501001","производство (некомбинированная выработка)+передача+сбыт","WARM"]
[87,"Ставропольский край","Буденновский муниципальный район","07612000","Село Прасковея","07612419","26355225","ГУП СК \"Крайтеплоэнерго\"","2635060510","263501001","производство (некомбинированная выработка)+передача+сбыт","WARM"]
[88,"Ставропольский край","Буденновский муниципальный район","07612000","Село Толстово-Васюковское","07612427","26355225","ГУП СК \"Крайтеплоэнерго\"","2635060510","263501001","производство (некомбинированная выработка)+передача+сбыт","WARM"]
[89,"Ставропольский край","Буденновский муниципальный район","07612000","Село Толстово-Васюковское","07612427","30376996","Тестовая организация ТЕСТ","7734520599","773401001","Передача","WARM"]
[90,"Ставропольский край","Буденновский муниципальный район","07612000","Стародубский сельсовет","07612422","26355225","ГУП СК \"Крайтеплоэнерго\"","2635060510","263501001","производство (некомбинированная выработка)+передача+сбыт","WARM"]
[91,"Ставропольский край","Буденновский муниципальный район","07612000","Терский сельсовет","07612425","26355225","ГУП СК \"Крайтеплоэнерго\"","2635060510","263501001","производство (некомбинированная выработка)+передача+сбыт","WARM"]
[92,"Ставропольский край","Буденновский муниципальный район","07612000","Томузловский сельсовет","07612429","26355225","ГУП СК \"Крайтеплоэнерго\"","2635060510","263501001","производство (некомбинированная выработка)+передача+сбыт","WARM"]
[93,"Ставропольский край","Георгиевский муниципальный район","07615000","Александрийский сельсовет","07615402","26355225","ГУП СК \"Крайтеплоэнерго\"","2635060510","263501001","производство (некомбинированная выработка)+передача+сбыт","WARM"]
[94,"Ставропольский край","Георгиевский муниципальный район","07615000","Крутоярский сельсовет","07615408","26355225","ГУП СК \"Крайтеплоэнерго\"","2635060510","263501001","производство (некомбинированная выработка)+передача+сбыт","WARM"]
[95,"Ставропольский край","Георгиевский муниципальный район","07615000","Незлобненский сельсовет","07615413","26838066","АО \"РЭУ\"","7714783092","774501001","производство (некомбинированная выработка)+передача+сбыт","WARM"]
[96,"Ставропольский край","Георгиевский муниципальный район","07615000","Незлобненский сельсовет","07615413","26355225","ГУП СК \"Крайтеплоэнерго\"","2635060510","263501001","производство (некомбинированная выработка)+передача+сбыт","WARM"]
[97,"Ставропольский край","Георгиевский муниципальный район","07615000","Незлобненский сельсовет","07615413","27507656","ОАО \"РЭУ\" Филиал Владикавказский","7714783092","151543001","производство (некомбинированная выработка)+передача+сбыт","WARM"]
[98,"Ставропольский край","Георгиевский муниципальный район","07615000","Незлобненский сельсовет","07615413","28535957","ООО \"Теплосервис-КМВ\"","2625800847","262501001","производство (некомбинированная выработка)","WARM"]
[99,"Ставропольский край","Георгиевский муниципальный район","07615000","Незлобненский сельсовет","07615413","30356084","Обособленное подразделение \"Ставропольское\" АО \"ГУ ЖКХ\"","5116000922","263445001","производство (некомбинированная выработка)+передача+сбыт","WARM"]
[100,"Ставропольский край","Георгиевский муниципальный район","07615000","Незлобненский сельсовет","07615413","26421696","Открытое акционерное общество \"Черномортранснефть\" (филиал \"Тихорецкое районное управление магистральных нефтепроводов\"","2315072242","262502001","производство (некомбинированная выработка)+передача+сбыт","WARM"]
[101,"Ставропольский край","Георгиевский муниципальный район","07615000","Поселок Новый","07615415","26355225","ГУП СК \"Крайтеплоэнерго\"","2635060510","263501001","производство (некомбинированная выработка)+передача+сбыт","WARM"]
[102,"Ставропольский край","Георгиевский муниципальный район","07615000","Село Краснокумское","07615406","26355225","ГУП СК \"Крайтеплоэнерго\"","2635060510","263501001","производство (некомбинированная выработка)+передача+сбыт","WARM"]
[103,"Ставропольский край","Георгиевский муниципальный район","07615000","Село Краснокумское","07615406","30356084","Обособленное подразделение \"Ставропольское\" АО \"ГУ ЖКХ\"","5116000922","263445001","производство (некомбинированная выработка)+сбыт","WARM"]
[104,"Ставропольский край","Георгиевский муниципальный район","07615000","Село Новозаведенное","07615416","26355225","ГУП СК \"Крайтеплоэнерго\"","2635060510","263501001","производство (некомбинированная выработка)+передача+сбыт","WARM"]
[105,"Ставропольский край","Георгиевский муниципальный район","07615000","Село Обильное","07615419","26355225","ГУП СК \"Крайтеплоэнерго\"","2635060510","263501001","производство (некомбинированная выработка)+передача+сбыт","WARM"]
[106,"Ставропольский край","Георгиевский муниципальный район","07615000","Станица Георгиевская","07615404","26355225","ГУП СК \"Крайтеплоэнерго\"","2635060510","263501001","производство (некомбинированная выработка)+передача+сбыт","WARM"]
[107,"Ставропольский край","Георгиевский муниципальный район","07615000","Станица Лысогорская","07615410","26355225","ГУП СК \"Крайтеплоэнерго\"","2635060510","263501001","производство (некомбинированная выработка)+передача+сбыт","WARM"]
[108,"Ставропольский край","Георгиевский муниципальный район","07615000","Станица Подгорная","07615422","26355225","ГУП СК \"Крайтеплоэнерго\"","2635060510","263501001","производство (некомбинированная выработка)+передача+сбыт","WARM"]
[109,"Ставропольский край","Георгиевский муниципальный район","07615000","Ульяновский сельсовет","07615425","26355225","ГУП СК \"Крайтеплоэнерго\"","2635060510","263501001","производство (некомбинированная выработка)+передача+сбыт","WARM"]
[110,"Ставропольский край","Георгиевский муниципальный район","07615000","Урухский сельсовет","07615428","26355225","ГУП СК \"Крайтеплоэнерго\"","2635060510","263501001","производство (некомбинированная выработка)+передача+сбыт","WARM"]
[111,"Ставропольский край","Георгиевский муниципальный район","07615000","Шаумяновский сельсовет","07615431","26355225","ГУП СК \"Крайтеплоэнерго\"","2635060510","263501001","производство (некомбинированная выработка)+передача+сбыт","WARM"]
[112,"Ставропольский край","Город Георгиевск","07707000","Город Георгиевск","07707000","26838066","АО \"РЭУ\"","7714783092","774501001","производство (некомбинированная выработка)+передача+сбыт","WARM"]
[113,"Ставропольский край","Город Георгиевск","07707000","Город Георгиевск","07707000","26355185","ГМУП \"Теплосеть\"","2625002189","262501001","производство (некомбинированная выработка)+передача+сбыт","WARM"]
[114,"Ставропольский край","Город Георгиевск","07707000","Город Георгиевск","07707000","27727536","ЗАО \"Хайнц-Георгиевск\"","2625015692","262501001","производство (некомбинированная выработка)+передача+сбыт","WARM"]
[115,"Ставропольский край","Город Георгиевск","07707000","Город Георгиевск","07707000","27507656","ОАО \"РЭУ\" Филиал Владикавказский","7714783092","151543001","производство (некомбинированная выработка)+передача+сбыт","WARM"]
[116,"Ставропольский край","Город Георгиевск","07707000","Город Георгиевск","07707000","26355187","ОАО \"Хлебокомбинат \"Георгиевский\"","2625012571","262501001","производство (некомбинированная выработка)+передача+сбыт","WARM"]
[117,"Ставропольский край","Город Георгиевск","07707000","Город Георгиевск","07707000","28535957","ООО \"Теплосервис-КМВ\"","2625800847","262501001","производство (некомбинированная выработка)","WARM"]
[118,"Ставропольский край","Город Георгиевск","07707000","Город Георгиевск","07707000","30356084","Обособленное подразделение \"Ставропольское\" АО \"ГУ ЖКХ\"","5116000922","263445001","производство (некомбинированная выработка)+передача+сбыт","WARM"]
[119,"Ставропольский край","Город Георгиевск","07707000","Город Георгиевск","07707000","26816056","Северо-Кавказская дирекция по тепловодоснабжению структурное подразделение Центральной дирекции по тепловодоснабжению - филиала ОАО \"РЖД\"","7708503727","616745019","производство (некомбинированная выработка)+передача+сбыт","WARM"]
[120,"Ставропольский край","Город Лермонтов","07718000","Город Лермонтов","07718000","26360929","ЗАО \"ЮЭК\" филиал в г. Лермонтов Ставропольского края","7704262319","262902001","Передача+Сбыт","WARM"]
[121,"Ставропольский край","Город Лермонтов","07718000","Город Лермонтов","07718000","26360929","ЗАО \"ЮЭК\" филиал в г. Лермонтов Ставропольского края","7704262319","262902001","производство комбинированная выработка","WARM"]
[122,"Ставропольский край","Город Лермонтов","07718000","Город Лермонтов","07718000","26383213","МУП \"Лермонтовгоргаз\"","2629005046","262901001","производство (некомбинированная выработка)+сбыт","WARM"]
[123,"Ставропольский край","Город Невинномысск","07724000","Город Невинномысск","07724000","26419409","АО \"Невинномысский Азот\"","2631015563","263101001","производство (некомбинированная выработка)+передача+сбыт","WARM"]
[124,"Ставропольский край","Город Невинномысск","07724000","Город Невинномысск","07724000","26838066","АО \"РЭУ\"","7714783092","774501001","производство (некомбинированная выработка)+передача+сбыт","WARM"]
[125,"Ставропольский край","Город Невинномысск","07724000","Город Невинномысск","07724000","26417110","АО \"СКЭРК\"","0721009031","263145001","производство (некомбинированная выработка)+сбыт","WARM"]
[126,"Ставропольский край","Город Невинномысск","07724000","Город Невинномысск","07724000","26355198","АО \"Теплосеть\" г. Невинномысск","2631054298","263101001","производство (некомбинированная выработка)+передача+сбыт","WARM"]
[127,"Ставропольский край","Город Невинномысск","07724000","Город Невинномысск","07724000","26355225","ГУП СК \"Крайтеплоэнерго\"","2635060510","263501001","производство (некомбинированная выработка)+передача+сбыт","WARM"]
[128,"Ставропольский край","Город Невинномысск","07724000","Город Невинномысск","07724000","26355197","ОАО \"Квант-Энергия\"","2631002155","263101001","производство (некомбинированная выработка)+сбыт","WARM"]
[129,"Ставропольский край","Город Невинномысск","07724000","Город Невинномысск","07724000","28014322","ООО \"Теплоцентр-НШК\"","2631803194","263101001","производство (некомбинированная выработка)+передача","WARM"]
[130,"Ставропольский край","Город Невинномысск","07724000","Город Невинномысск","07724000","30356084","Обособленное подразделение \"Ставропольское\" АО \"ГУ ЖКХ\"","5116000922","263445001","производство (некомбинированная выработка)+передача+сбыт","WARM"]
[131,"Ставропольский край","Город Невинномысск","07724000","Город Невинномысск","07724000","26355202","Общество с ограниченной ответственностью \"ПРЯЖА\"","2631052068","263101001","производство (некомбинированная выработка)+передача+сбыт","WARM"]
[132,"Ставропольский край","Город Невинномысск","07724000","Город Невинномысск","07724000","26416944","Филиал \"Невинномысская ГРЭС\"  ПАО \"Энел Россия\"","6671156423","263102001","Передача+Сбыт","WARM"]
[133,"Ставропольский край","Город Невинномысск","07724000","Город Невинномысск","07724000","26416944","Филиал \"Невинномысская ГРЭС\"  ПАО \"Энел Россия\"","6671156423","263102001","производство комбинированная выработка","WARM"]
[134,"Ставропольский край","Город Ставрополь","07701000","Город Ставрополь","07701000","26838066","АО \"РЭУ\"","7714783092","774501001","производство (некомбинированная выработка)+передача+сбыт","WARM"]
[135,"Ставропольский край","Город Ставрополь","07701000","Город Ставрополь","07701000","26355211","АО \"Теплосеть\" г. Ставрополь","2635095930","263501001","производство (некомбинированная выработка)+передача+сбыт","WARM"]
[136,"Ставропольский край","Город Ставрополь","07701000","Город Ставрополь","07701000","26355225","ГУП СК \"Крайтеплоэнерго\"","2635060510","263501001","производство (некомбинированная выработка)+передача+сбыт","WARM"]
[137,"Ставропольский край","Город Ставрополь","07701000","Город Ставрополь","07701000","26568917","Государственное унитарное предприятие Домоуправление №2 при Ставропольской КЭЧ района","2634036829","263401001","производство (некомбинированная выработка)+сбыт","WARM"]
[138,"Ставропольский край","Город Ставрополь","07701000","Город Ставрополь","07701000","26355213","ЗАО \"Гермес-52\"","2633002369","263501001","производство (некомбинированная выработка)+передача+сбыт","WARM"]
[139,"Ставропольский край","Город Ставрополь","07701000","Город Ставрополь","07701000","26355210","ЗАО \"Пассаж\"","2633001132","263601001","производство (некомбинированная выработка)+сбыт","WARM"]
[140,"Ставропольский край","Город Ставрополь","07701000","Город Ставрополь","07701000","26416158","Закрытое акционерное общество \"Теплоэнерго\"","2635041652","263501001","производство (некомбинированная выработка)+сбыт","WARM"]
[141,"Ставропольский край","Город Ставрополь","07701000","Город Ставрополь","07701000","30370933","ИП Гукасян Владимир Александрович","263603503719","отсутствует","производство (некомбинированная выработка)","WARM"]
[142,"Ставропольский край","Город Ставрополь","07701000","Город Ставрополь","07701000","29649010","ИП Кашурина Дарья Андреевна","263408566507","отсутствует","производство (некомбинированная выработка)+передача","WARM"]
[143,"Ставропольский край","Город Ставрополь","07701000","Город Ставрополь","07701000","30479512","ИП Согоян Геворг Владимирович","263410214911","отсутствует","производство (некомбинированная выработка)+передача+сбыт","WARM"]
[144,"Ставропольский край","Город Ставрополь","07701000","Город Ставрополь","07701000","26891086","ООО \"Ритм-Б\"","2636032690","263501001","производство (некомбинированная выработка)+передача+сбыт","WARM"]
[145,"Ставропольский край","Город Ставрополь","07701000","Город Ставрополь","07701000","30356084","Обособленное подразделение \"Ставропольское\" АО \"ГУ ЖКХ\"","5116000922","263445001","производство (некомбинированная выработка)+передача+сбыт","WARM"]
[146,"Ставропольский край","Город Ставрополь","07701000","Город Ставрополь","07701000","26355218","Общество с ограниченной ответственностью \"Центр\"","2634049955","263401001","производство (некомбинированная выработка)+передача+сбыт","WARM"]
[147,"Ставропольский край","Город Ставрополь","07701000","Город Ставрополь","07701000","26355219","ПАО \"Ставропольский радиозавод \"Сигнал\"","2635000092","263501001","производство (некомбинированная выработка)+передача+сбыт","WARM"]
[148,"Ставропольский край","Город Ставрополь","07701000","Город Ставрополь","07701000","26449407","Свечинский районный телекоммуникационный узел (РТУ) Кировского филиала ОАО \"Волгателеком\"","5260901817","432832002","производство (некомбинированная выработка)+передача+сбыт","WARM"]
[149,"Ставропольский край","Город Ставрополь","07701000","Город Ставрополь","07701000","26816056","Северо-Кавказская дирекция по тепловодоснабжению структурное подразделение Центральной дирекции по тепловодоснабжению - филиала ОАО \"РЖД\"","7708503727","616745019","производство (некомбинированная выработка)+передача+сбыт","WARM"]
[150,"Ставропольский край","Город Ставрополь","07701000","Город Ставрополь","07701000","26322297","Северо-Кавказский филиал ООО \"Газпром энерго\"","7736186950","263602001","Передача+Сбыт","WARM"]
[151,"Ставропольский край","Город Ставрополь","07701000","Город Ставрополь","07701000","26322297","Северо-Кавказский филиал ООО \"Газпром энерго\"","7736186950","263602001","производство (некомбинированная выработка)+передача","WARM"]
[152,"Ставропольский край","Город Ставрополь","07701000","Город Ставрополь","07701000","26322297","Северо-Кавказский филиал ООО \"Газпром энерго\"","7736186950","263602001","производство (некомбинированная выработка)+передача+сбыт","WARM"]
[153,"Ставропольский край","Город Ставрополь","07701000","Город Ставрополь","07701000","26322297","Северо-Кавказский филиал ООО \"Газпром энерго\"","7736186950","263602001","производство (некомбинированная выработка)+сбыт","WARM"]
[154,"Ставропольский край","Город Ставрополь","07701000","Город Ставрополь","07701000","28980134","УФСБ России по Ставропольскому краю","2634025295","263401001","производство (некомбинированная выработка)","WARM"]
[155,"Ставропольский край","Город Ставрополь","07701000","Город Ставрополь","07701000","26759933","ФГБНУ ВНИИОК","2634013130","263401001","производство (некомбинированная выработка)+передача+сбыт","WARM"]
[156,"Ставропольский край","Город Ставрополь","07701000","Город Ставрополь","07701000","27357611","Филиал ОАО \"РЭУ\" \"Ростовский\"","7714783092","616543001","производство (некомбинированная выработка)+передача+сбыт","WARM"]
[157,"Ставропольский край","Город Ставрополь","07701000","Город Ставрополь","07701000","27727710","Филиал ФГУП \"НПО \"Микроген\" Минздрава России \"Аллерген\" в г.Ставрополь","7722292838","263402001","производство (некомбинированная выработка)+передача+сбыт","WARM"]
[158,"Ставропольский край","Город-курорт Ессентуки","07710000","Город-курорт Ессентуки","07710000","26838066","АО \"РЭУ\"","7714783092","774501001","производство (некомбинированная выработка)+передача+сбыт","WARM"]
[159,"Ставропольский край","Город-курорт Ессентуки","07710000","Город-курорт Ессентуки","07710000","26355225","ГУП СК \"Крайтеплоэнерго\"","2635060510","263501001","производство (некомбинированная выработка)+передача+сбыт","WARM"]
[160,"Ставропольский край","Город-курорт Ессентуки","07710000","Город-курорт Ессентуки","07710000","26355189","ОАО \"Ессентукская Теплосеть\"","2626020720","262601001","производство (некомбинированная выработка)+передача+сбыт","WARM"]
[161,"Ставропольский край","Город-курорт Ессентуки","07710000","Город-курорт Ессентуки","07710000","27507656","ОАО \"РЭУ\" Филиал Владикавказский","7714783092","151543001","производство (некомбинированная выработка)+передача+сбыт","WARM"]
[162,"Ставропольский край","Город-курорт Ессентуки","07710000","Город-курорт Ессентуки","07710000","26355190","ООО \"Объединение котельных курорта\" г.Ессентуки","2626027362","262601001","производство (некомбинированная выработка)+передача+сбыт","WARM"]
[163,"Ставропольский край","Город-курорт Ессентуки","07710000","Город-курорт Ессентуки","07710000","30356084","Обособленное подразделение \"Ставропольское\" АО \"ГУ ЖКХ\"","5116000922","263445001","производство (некомбинированная выработка)+передача+сбыт","WARM"]
[164,"Ставропольский край","Город-курорт Ессентуки","07710000","Город-курорт Ессентуки","07710000","30438499","ФГБУ санаторий им. И.М.Сеченова Минздрава России","2626007905","262601001","Передача+Сбыт","WARM"]
[165,"Ставропольский край","Город-курорт Железноводск","07712000","Город-курорт Железноводск","07712000","26838066","АО \"РЭУ\"","7714783092","774501001","производство (некомбинированная выработка)+передача+сбыт","WARM"]
[166,"Ставропольский край","Город-курорт Железноводск","07712000","Город-курорт Железноводск","07712000","28118061","ГБПОУ ЖХСТ","2627012954","262701001","производство (некомбинированная выработка)+передача+сбыт","WARM"]
[167,"Ставропольский край","Город-курорт Железноводск","07712000","Город-курорт Железноводск","07712000","26568923","Государственное учреждение \"Санаторий \"Железноводск\" Министерства внутренних дел Российской Федерации","2627012055","262701001","производство (некомбинированная выработка)+передача+сбыт","WARM"]
[168,"Ставропольский край","Город-курорт Железноводск","07712000","Город-курорт Железноводск","07712000","26355192","МУП \"Теплосеть\" г. Железноводск","2627007954","262701001","производство (некомбинированная выработка)+передача+сбыт","WARM"]
[169,"Ставропольский край","Город-курорт Железноводск","07712000","Город-курорт Железноводск","07712000","26355193","ООО \"Объединение котельных курорта\" г. Железноводск","2627016807","262701001","производство (некомбинированная выработка)+передача+сбыт","WARM"]
[170,"Ставропольский край","Город-курорт Железноводск","07712000","Город-курорт Железноводск","07712000","30356084","Обособленное подразделение \"Ставропольское\" АО \"ГУ ЖКХ\"","5116000922","263445001","Передача+Сбыт","WARM"]
[171,"Ставропольский край","Город-курорт Кисловодск","07715000","Город-курорт Кисловодск","07715000","26838066","АО \"РЭУ\"","7714783092","774501001","производство (некомбинированная выработка)+передача+сбыт","WARM"]
[172,"Ставропольский край","Город-курорт Кисловодск","07715000","Город-курорт Кисловодск","07715000","27507656","ОАО \"РЭУ\" Филиал Владикавказский","7714783092","151543001","производство (некомбинированная выработка)+передача+сбыт","WARM"]
[173,"Ставропольский край","Город-курорт Кисловодск","07715000","Город-курорт Кисловодск","07715000","26355194","ОАО \"Теплосеть\" г. Кисловодск","2628008414","262801001","производство (некомбинированная выработка)+передача+сбыт","WARM"]
[174,"Ставропольский край","Город-курорт Кисловодск","07715000","Город-курорт Кисловодск","07715000","30479236","ООО \"Газпром Теплоэнерго Кисловодск\"","2628057299","262801001","производство (некомбинированная выработка)+передача","WARM"]
[175,"Ставропольский край","Город-курорт Кисловодск","07715000","Город-курорт Кисловодск","07715000","26416800","ООО \"ЛУКОЙЛ-Ростовэнерго\" Обособленное подразделение Кисловодская ТЭЦ","6164288981","262845001","Передача+Сбыт","WARM"]
[176,"Ставропольский край","Город-курорт Кисловодск","07715000","Город-курорт Кисловодск","07715000","26416800","ООО \"ЛУКОЙЛ-Ростовэнерго\" Обособленное подразделение Кисловодская ТЭЦ","6164288981","262845001","производство (некомбинированная выработка)+передача+сбыт","WARM"]
[177,"Ставропольский край","Город-курорт Кисловодск","07715000","Город-курорт Кисловодск","07715000","26416800","ООО \"ЛУКОЙЛ-Ростовэнерго\" Обособленное подразделение Кисловодская ТЭЦ","6164288981","262845001","производство комбинированная выработка","WARM"]
[178,"Ставропольский край","Город-курорт Кисловодск","07715000","Город-курорт Кисловодск","07715000","27567409","ООО \"ЛУКОЙЛ-Ставропольэнерго\"","2624033219","262845001","Передача+Сбыт","WARM"]
[179,"Ставропольский край","Город-курорт Кисловодск","07715000","Город-курорт Кисловодск","07715000","27567409","ООО \"ЛУКОЙЛ-Ставропольэнерго\"","2624033219","262845001","производство (некомбинированная выработка)+передача+сбыт","WARM"]
[180,"Ставропольский край","Город-курорт Кисловодск","07715000","Город-курорт Кисловодск","07715000","27567409","ООО \"ЛУКОЙЛ-Ставропольэнерго\"","2624033219","262845001","производство комбинированная выработка","WARM"]
[181,"Ставропольский край","Город-курорт Кисловодск","07715000","Город-курорт Кисловодск","07715000","30356084","Обособленное подразделение \"Ставропольское\" АО \"ГУ ЖКХ\"","5116000922","263445001","производство (некомбинированная выработка)+передача+сбыт","WARM"]
[182,"Ставропольский край","Город-курорт Кисловодск","07715000","Город-курорт Кисловодск","07715000","28980134","УФСБ России по Ставропольскому краю","2634025295","263401001","производство (некомбинированная выработка)","WARM"]
[183,"Ставропольский край","Город-курорт Кисловодск","07715000","Город-курорт Кисловодск","07715000","28980134","УФСБ России по Ставропольскому краю","2634025295","263401001","производство (некомбинированная выработка)+передача","WARM"]
[184,"Ставропольский край","Город-курорт Кисловодск","07715000","Город-курорт Кисловодск","07715000","26355217","ФГКУ \"МСЧ УФСБ России по Ставропольскому краю\" (филиал в г. Кисловодске)","2633005786","263301001","производство (некомбинированная выработка)+передача+сбыт","WARM"]
[185,"Ставропольский край","Город-курорт Пятигорск","07727000","Город-курорт Пятигорск","07727000","26838066","АО \"РЭУ\"","7714783092","774501001","производство (некомбинированная выработка)+передача+сбыт","WARM"]
[186,"Ставропольский край","Город-курорт Пятигорск","07727000","Город-курорт Пятигорск","07727000","26355214","ГКУЗ \"Ставропольский краевой госпиталь для ветеранов войн\"","2632055946","263201001","производство (некомбинированная выработка)+передача+сбыт","WARM"]
[187,"Ставропольский край","Город-курорт Пятигорск","07727000","Город-курорт Пятигорск","07727000","26355205","ЛПУП  Санаторий \"РОДНИК\"","2632053836","263201001","производство (некомбинированная выработка)+передача+сбыт","WARM"]
[188,"Ставропольский край","Город-курорт Пятигорск","07727000","Город-курорт Пятигорск","07727000","26355207","ЛПУП \"Пятигорская бальнеогрязелечебница\"","2632054854","263201001","производство (некомбинированная выработка)+передача+сбыт","WARM"]
[189,"Ставропольский край","Город-курорт Пятигорск","07727000","Город-курорт Пятигорск","07727000","26355206","Лечебно-профилактическое учреждение профсоюзов Санаторий \"Ленинские скалы\"","2632053843","263201001","производство (некомбинированная выработка)+передача+сбыт","WARM"]
[190,"Ставропольский край","Город-курорт Пятигорск","07727000","Город-курорт Пятигорск","07727000","26355204","Муниципальное унитарное предприятие города Пятигорска Ставропольского края \"Пятигорский теплоэнергетический комплекс\"","2632016182","263201001","производство (некомбинированная выработка)+передача+сбыт","WARM"]
[191,"Ставропольский край","Город-курорт Пятигорск","07727000","Город-курорт Пятигорск","07727000","26850785","ОАО \"ПТЭК\"","2632800936","263201001","производство (некомбинированная выработка)+передача+сбыт","WARM"]
[192,"Ставропольский край","Город-курорт Пятигорск","07727000","Город-курорт Пятигорск","07727000","27507656","ОАО \"РЭУ\" Филиал Владикавказский","7714783092","151543001","производство (некомбинированная выработка)+передача+сбыт","WARM"]
[193,"Ставропольский край","Город-курорт Пятигорск","07727000","Город-курорт Пятигорск","07727000","27192154","ООО \"ЛУКОЙЛ-Ставропольэнерго\" (Котельная Машук)","2624033219","262401001","производство (некомбинированная выработка)+передача+сбыт","WARM"]
[194,"Ставропольский край","Город-курорт Пятигорск","07727000","Город-курорт Пятигорск","07727000","26355209","ООО \"Пятигорсктеплосервис\"","2632062277","263201001","производство (некомбинированная выработка)+передача+сбыт","WARM"]
[195,"Ставропольский край","Город-курорт Пятигорск","07727000","Город-курорт Пятигорск","07727000","26355203","ООО \"Санаторий \"Тарханы\"","2632012646","263201001","производство (некомбинированная выработка)+передача+сбыт","WARM"]
[196,"Ставропольский край","Город-курорт Пятигорск","07727000","Город-курорт Пятигорск","07727000","26355208","ООО \"ТЕХНО-Сервис\"","2632059130","263201001","производство (некомбинированная выработка)+передача+сбыт","WARM"]
[197,"Ставропольский край","Город-курорт Пятигорск","07727000","Город-курорт Пятигорск","07727000","27882380","ООО \"ЭНЕРГЕТИК\" (котельная \"Машук\" в г. Пятигорске)","2618800660","261801001","производство (некомбинированная выработка)+передача+сбыт","WARM"]
[198,"Ставропольский край","Город-курорт Пятигорск","07727000","Город-курорт Пятигорск","07727000","30356084","Обособленное подразделение \"Ставропольское\" АО \"ГУ ЖКХ\"","5116000922","263445001","производство (некомбинированная выработка)+передача+сбыт","WARM"]
[199,"Ставропольский край","Город-курорт Пятигорск","07727000","Город-курорт Пятигорск","07727000","26816056","Северо-Кавказская дирекция по тепловодоснабжению структурное подразделение Центральной дирекции по тепловодоснабжению - филиала ОАО \"РЖД\"","7708503727","616745019","производство (некомбинированная выработка)+передача+сбыт","WARM"]
[200,"Ставропольский край","Город-курорт Пятигорск","07727000","Город-курорт Пятигорск","07727000","26893254","ФГУ \"Пятигорский ЦВС\" МО РФ","2632033822","263201001","производство (некомбинированная выработка)+передача+сбыт","WARM"]
[201,"Ставропольский край","Грачевский муниципальный район","07617000","Грачевский сельсовет","07617404","26838066","АО \"РЭУ\"","7714783092","774501001","производство (некомбинированная выработка)+передача+сбыт","WARM"]
[202,"Ставропольский край","Грачевский муниципальный район","07617000","Грачевский сельсовет","07617404","26355172","МУП \"КХ\" Грачёвского муниципального района Ставропольского края","2606000122","260601001","производство (некомбинированная выработка)+передача+сбыт","WARM"]
[203,"Ставропольский край","Грачевский муниципальный район","07617000","Грачевский сельсовет","07617404","30356084","Обособленное подразделение \"Ставропольское\" АО \"ГУ ЖКХ\"","5116000922","263445001","Передача+Сбыт","WARM"]
[204,"Ставропольский край","Грачевский муниципальный район","07617000","Красный сельсовет","07617407","30356084","Обособленное подразделение \"Ставропольское\" АО \"ГУ ЖКХ\"","5116000922","263445001","Передача","WARM"]
[205,"Ставропольский край","Грачевский муниципальный район","07617000","Кугультинский сельсовет","07617410","26355172","МУП \"КХ\" Грачёвского муниципального района Ставропольского края","2606000122","260601001","производство (некомбинированная выработка)+передача+сбыт","WARM"]
[206,"Ставропольский край","Грачевский муниципальный район","07617000","Кугультинский сельсовет","07617410","30356084","Обособленное подразделение \"Ставропольское\" АО \"ГУ ЖКХ\"","5116000922","263445001","Передача","WARM"]
[207,"Ставропольский край","Грачевский муниципальный район","07617000","Село Бешпагир","07617401","26355172","МУП \"КХ\" Грачёвского муниципального района Ставропольского края","2606000122","260601001","производство (некомбинированная выработка)+передача+сбыт","WARM"]
[208,"Ставропольский край","Грачевский муниципальный район","07617000","Село Бешпагир","07617401","30356084","Обособленное подразделение \"Ставропольское\" АО \"ГУ ЖКХ\"","5116000922","263445001","Передача","WARM"]
[209,"Ставропольский край","Грачевский муниципальный район","07617000","Село Тугулук","07617422","30356084","Обособленное подразделение \"Ставропольское\" АО \"ГУ ЖКХ\"","5116000922","263445001","Передача","WARM"]
[210,"Ставропольский край","Грачевский муниципальный район","07617000","Сергиевский сельсовет","07617413","30356084","Обособленное подразделение \"Ставропольское\" АО \"ГУ ЖКХ\"","5116000922","263445001","Передача","WARM"]
[211,"Ставропольский край","Грачевский муниципальный район","07617000","Спицевский сельсовет","07617416","30356084","Обособленное подразделение \"Ставропольское\" АО \"ГУ ЖКХ\"","5116000922","263445001","Передача","WARM"]
[212,"Ставропольский край","Грачевский муниципальный район","07617000","Старомарьевский сельсовет","07617419","30356084","Обособленное подразделение \"Ставропольское\" АО \"ГУ ЖКХ\"","5116000922","263445001","Передача","WARM"]
[213,"Ставропольский край","Изобильненский муниципальный район","07620000","Город Изобильный","07620101","26838066","АО \"РЭУ\"","7714783092","774501001","производство (некомбинированная выработка)+передача+сбыт","WARM"]
[214,"Ставропольский край","Изобильненский муниципальный район","07620000","Город Изобильный","07620101","26355225","ГУП СК \"Крайтеплоэнерго\"","2635060510","263501001","производство (некомбинированная выработка)+передача+сбыт","WARM"]
[215,"Ставропольский край","Изобильненский муниципальный район","07620000","Город Изобильный","07620101","26355174","ОАО \"Ставропольсахар\"","2607012219","260701001","Передача+Сбыт","WARM"]
[216,"Ставропольский край","Изобильненский муниципальный район","07620000","Город Изобильный","07620101","26355174","ОАО \"Ставропольсахар\"","2607012219","260701001","производство комбинированная выработка","WARM"]
[217,"Ставропольский край","Изобильненский муниципальный район","07620000","Город Изобильный","07620101","26355224","ООО «Газпром трансгаз Ставрополь»","2636032629","263601001","производство (некомбинированная выработка)+передача+сбыт","WARM"]
[218,"Ставропольский край","Изобильненский муниципальный район","07620000","Город Изобильный","07620101","30356084","Обособленное подразделение \"Ставропольское\" АО \"ГУ ЖКХ\"","5116000922","263445001","производство (некомбинированная выработка)+передача+сбыт","WARM"]
[219,"Ставропольский край","Изобильненский муниципальный район","07620000","Город Изобильный","07620101","26355173","ПАО \"Завод Атлант\"","2607000333","260701001","производство (некомбинированная выработка)+передача+сбыт","WARM"]
[220,"Ставропольский край","Изобильненский муниципальный район","07620000","Московский сельсовет","07620407","26355225","ГУП СК \"Крайтеплоэнерго\"","2635060510","263501001","производство (некомбинированная выработка)+передача+сбыт","WARM"]
[221,"Ставропольский край","Изобильненский муниципальный район","07620000","Московский сельсовет","07620407","30356084","Обособленное подразделение \"Ставропольское\" АО \"ГУ ЖКХ\"","5116000922","263445001","производство (некомбинированная выработка)+сбыт","WARM"]
[222,"Ставропольский край","Изобильненский муниципальный район","07620000","Новоизобильненский сельсовет","07620409","26355225","ГУП СК \"Крайтеплоэнерго\"","2635060510","263501001","производство (некомбинированная выработка)+передача+сбыт","WARM"]
[223,"Ставропольский край","Изобильненский муниципальный район","07620000","Подлужненский сельсовет","07620413","26355225","ГУП СК \"Крайтеплоэнерго\"","2635060510","263501001","производство (некомбинированная выработка)+передача+сбыт","WARM"]
[224,"Ставропольский край","Изобильненский муниципальный район","07620000","Поселок Рыздвяный","07620153","26355225","ГУП СК \"Крайтеплоэнерго\"","2635060510","263501001","производство (некомбинированная выработка)+передача+сбыт","WARM"]
[225,"Ставропольский край","Изобильненский муниципальный район","07620000","Поселок Рыздвяный","07620153","26322297","Северо-Кавказский филиал ООО \"Газпром энерго\"","7736186950","263602001","Передача","WARM"]
[226,"Ставропольский край","Изобильненский муниципальный район","07620000","Поселок Рыздвяный","07620153","26322297","Северо-Кавказский филиал ООО \"Газпром энерго\"","7736186950","263602001","Передача+Сбыт","WARM"]
[227,"Ставропольский край","Изобильненский муниципальный район","07620000","Поселок Рыздвяный","07620153","26322297","Северо-Кавказский филиал ООО \"Газпром энерго\"","7736186950","263602001","производство (некомбинированная выработка)+передача","WARM"]
[228,"Ставропольский край","Изобильненский муниципальный район","07620000","Поселок Рыздвяный","07620153","26322297","Северо-Кавказский филиал ООО \"Газпром энерго\"","7736186950","263602001","производство (некомбинированная выработка)+передача+сбыт","WARM"]
[229,"Ставропольский край","Изобильненский муниципальный район","07620000","Поселок Солнечнодольск","07620155","26417104","ООО \"СКС\"","2607019831","260701001","Передача+Сбыт","WARM"]
[230,"Ставропольский край","Изобильненский муниципальный район","07620000","Поселок Солнечнодольск","07620155","28952051","ООО \"СКС\"","2607000284","260701001","Передача+Сбыт","WARM"]
[231,"Ставропольский край","Изобильненский муниципальный район","07620000","Поселок Солнечнодольск","07620155","27051140","ПАО \"ОГК-2\"","2607018122","260701001","Передача+Сбыт","WARM"]
[232,"Ставропольский край","Изобильненский муниципальный район","07620000","Поселок Солнечнодольск","07620155","27051140","ПАО \"ОГК-2\"","2607018122","260701001","производство комбинированная выработка","WARM"]
[233,"Ставропольский край","Изобильненский муниципальный район","07620000","Поселок Солнечнодольск","07620155","26416974","Филиал ПАО \"ОГК-2\"-Ставропольская ГРЭС","2607018122","260702001","Передача+Сбыт","WARM"]
[234,"Ставропольский край","Изобильненский муниципальный район","07620000","Поселок Солнечнодольск","07620155","26416974","Филиал ПАО \"ОГК-2\"-Ставропольская ГРЭС","2607018122","260702001","производство комбинированная выработка","WARM"]
[235,"Ставропольский край","Изобильненский муниципальный район","07620000","Рождественский сельсовет","07620416","26355225","ГУП СК \"Крайтеплоэнерго\"","2635060510","263501001","производство (некомбинированная выработка)+передача+сбыт","WARM"]
[236,"Ставропольский край","Изобильненский муниципальный район","07620000","Село Птичье","07620414","26355225","ГУП СК \"Крайтеплоэнерго\"","2635060510","263501001","производство (некомбинированная выработка)+передача+сбыт","WARM"]
[237,"Ставропольский край","Изобильненский муниципальный район","07620000","Село Тищенское","07620422","26355225","ГУП СК \"Крайтеплоэнерго\"","2635060510","263501001","производство (некомбинированная выработка)+передача+сбыт","WARM"]
[238,"Ставропольский край","Изобильненский муниципальный район","07620000","Станица Баклановская","07620402","26355225","ГУП СК \"Крайтеплоэнерго\"","2635060510","263501001","производство (некомбинированная выработка)+передача+сбыт","WARM"]
[239,"Ставропольский край","Изобильненский муниципальный район","07620000","Станица Новотроицкая","07620410","26355225","ГУП СК \"Крайтеплоэнерго\"","2635060510","263501001","производство (некомбинированная выработка)+передача+сбыт","WARM"]
[240,"Ставропольский край","Изобильненский муниципальный район","07620000","Староизобильненский сельсовет","07620419","26355225","ГУП СК \"Крайтеплоэнерго\"","2635060510","263501001","производство (некомбинированная выработка)+передача+сбыт","WARM"]
[241,"Ставропольский край","Ипатовский муниципальный район","07622000","Большевистский сельсовет","07622402","26355225","ГУП СК \"Крайтеплоэнерго\"","2635060510","263501001","производство (некомбинированная выработка)+передача+сбыт","WARM"]
[242,"Ставропольский край","Ипатовский муниципальный район","07622000","Винодельненский сельсовет","07622410","26355225","ГУП СК \"Крайтеплоэнерго\"","2635060510","263501001","производство (некомбинированная выработка)+передача+сбыт","WARM"]
[243,"Ставропольский край","Ипатовский муниципальный район","07622000","Город Ипатово","07622101","26355225","ГУП СК \"Крайтеплоэнерго\"","2635060510","263501001","производство (некомбинированная выработка)+передача+сбыт","WARM"]
[244,"Ставропольский край","Ипатовский муниципальный район","07622000","Добровольно-Васильевский сельсовет","07622413","26355225","ГУП СК \"Крайтеплоэнерго\"","2635060510","263501001","производство (некомбинированная выработка)+передача+сбыт","WARM"]
[245,"Ставропольский край","Ипатовский муниципальный район","07622000","Кевсалинский сельсовет","07622422","26355225","ГУП СК \"Крайтеплоэнерго\"","2635060510","263501001","производство (некомбинированная выработка)+передача+сбыт","WARM"]
[246,"Ставропольский край","Ипатовский муниципальный район","07622000","Красочный сельсовет","07622425","26355225","ГУП СК \"Крайтеплоэнерго\"","2635060510","263501001","производство (некомбинированная выработка)+передача+сбыт","WARM"]
[247,"Ставропольский край","Ипатовский муниципальный район","07622000","Лиманский сельсовет","07622428","26355225","ГУП СК \"Крайтеплоэнерго\"","2635060510","263501001","производство (некомбинированная выработка)+передача+сбыт","WARM"]
[248,"Ставропольский край","Ипатовский муниципальный район","07622000","Октябрьский сельсовет","07622431","26355225","ГУП СК \"Крайтеплоэнерго\"","2635060510","263501001","производство (некомбинированная выработка)+передача+сбыт","WARM"]
[249,"Ставропольский край","Ипатовский муниципальный район","07622000","Село Бурукшун","07622407","26355225","ГУП СК \"Крайтеплоэнерго\"","2635060510","263501001","производство (некомбинированная выработка)+передача+сбыт","WARM"]
[250,"Ставропольский край","Ипатовский муниципальный район","07622000","Советскорунный сельсовет","07622437","26355225","ГУП СК \"Крайтеплоэнерго\"","2635060510","263501001","производство (некомбинированная выработка)+передача+сбыт","WARM"]
[251,"Ставропольский край","Ипатовский муниципальный район","07622000","Тахтинский сельсовет","07622440","26355225","ГУП СК \"Крайтеплоэнерго\"","2635060510","263501001","производство (некомбинированная выработка)+передача+сбыт","WARM"]
[252,"Ставропольский край","Кировский муниципальный район","07625000","Горнозаводской сельсовет","07625402","26355176","ГУП СК ЖКХ Кировского района","2609014934","260901001","производство (некомбинированная выработка)","WARM"]
[253,"Ставропольский край","Кировский муниципальный район","07625000","Горнозаводской сельсовет","07625402","26355176","ГУП СК ЖКХ Кировского района","2609014934","260901001","производство (некомбинированная выработка)+передача+сбыт","WARM"]
[254,"Ставропольский край","Кировский муниципальный район","07625000","Город Новопавловск","07625101","26355176","ГУП СК ЖКХ Кировского района","2609014934","260901001","производство (некомбинированная выработка)+передача+сбыт","WARM"]
[255,"Ставропольский край","Кировский муниципальный район","07625000","Город Новопавловск","07625101","27507656","ОАО \"РЭУ\" Филиал Владикавказский","7714783092","151543001","производство (некомбинированная выработка)+передача+сбыт","WARM"]
[256,"Ставропольский край","Кировский муниципальный район","07625000","Город Новопавловск","07625101","30356084","Обособленное подразделение \"Ставропольское\" АО \"ГУ ЖКХ\"","5116000922","263445001","производство (некомбинированная выработка)+сбыт","WARM"]
[257,"Ставропольский край","Кировский муниципальный район","07625000","Город Новопавловск","07625101","26816056","Северо-Кавказская дирекция по тепловодоснабжению структурное подразделение Центральной дирекции по тепловодоснабжению - филиала ОАО \"РЖД\"","7708503727","616745019","производство (некомбинированная выработка)+передача+сбыт","WARM"]
[258,"Ставропольский край","Кировский муниципальный район","07625000","Зольский сельсовет","07625404","26816056","Северо-Кавказская дирекция по тепловодоснабжению структурное подразделение Центральной дирекции по тепловодоснабжению - филиала ОАО \"РЖД\"","7708503727","616745019","производство (некомбинированная выработка)+передача+сбыт","WARM"]
[259,"Ставропольский край","Кировский муниципальный район","07625000","Комсомольский сельсовет","07625407","27507656","ОАО \"РЭУ\" Филиал Владикавказский","7714783092","151543001","производство (некомбинированная выработка)+передача+сбыт","WARM"]
[260,"Ставропольский край","Кировский муниципальный район","07625000","Комсомольский сельсовет","07625407","30356084","Обособленное подразделение \"Ставропольское\" АО \"ГУ ЖКХ\"","5116000922","263445001","производство (некомбинированная выработка)+сбыт","WARM"]
[261,"Ставропольский край","Кировский муниципальный район","07625000","Комсомольский сельсовет","07625407","30376996","Тестовая организация ТЕСТ","7734520599","773401001","Передача","WARM"]
[262,"Ставропольский край","Кировский муниципальный район","07625000","Новосредненский сельсовет","07625416","26355176","ГУП СК ЖКХ Кировского района","2609014934","260901001","производство (некомбинированная выработка)","WARM"]
[263,"Ставропольский край","Кировский муниципальный район","07625000","Советский сельсовет","07625419","26355176","ГУП СК ЖКХ Кировского района","2609014934","260901001","производство (некомбинированная выработка)+передача+сбыт","WARM"]
[264,"Ставропольский край","Кировский муниципальный район","07625000","Станица Марьинская","07625410","26355176","ГУП СК ЖКХ Кировского района","2609014934","260901001","производство (некомбинированная выработка)+передача+сбыт","WARM"]
[265,"Ставропольский край","Кировский муниципальный район","07625000","Старопавловский сельсовет","07625422","26355176","ГУП СК ЖКХ Кировского района","2609014934","260901001","производство (некомбинированная выработка)+передача+сбыт","WARM"]
[266,"Ставропольский край","Кочубеевский муниципальный район","07628000","Балахоновский сельсовет","07628402","26355225","ГУП СК \"Крайтеплоэнерго\"","2635060510","263501001","производство (некомбинированная выработка)+передача+сбыт","WARM"]
[267,"Ставропольский край","Кочубеевский муниципальный район","07628000","Ивановский сельсовет","07628416","26355177","МУП СК ЖКХ Кочубеевского района","2610012931","261001001","производство (некомбинированная выработка)+передача+сбыт","WARM"]
[268,"Ставропольский край","Кочубеевский муниципальный район","07628000","Надзорненский сельсовет","07628424","26355225","ГУП СК \"Крайтеплоэнерго\"","2635060510","263501001","производство (некомбинированная выработка)+передача+сбыт","WARM"]
[269,"Ставропольский край","Кочубеевский муниципальный район","07628000","Село Кочубеевское","07628422","26838066","АО \"РЭУ\"","7714783092","774501001","производство (некомбинированная выработка)+передача+сбыт","WARM"]
[270,"Ставропольский край","Кочубеевский муниципальный район","07628000","Село Кочубеевское","07628422","26355177","МУП СК ЖКХ Кочубеевского района","2610012931","261001001","производство (некомбинированная выработка)+передача+сбыт","WARM"]
[271,"Ставропольский край","Кочубеевский муниципальный район","07628000","Село Кочубеевское","07628422","30356084","Обособленное подразделение \"Ставропольское\" АО \"ГУ ЖКХ\"","5116000922","263445001","Передача+Сбыт","WARM"]
[272,"Ставропольский край","Красногвардейский муниципальный район","07630000","Коммунаровский сельсовет","07630404","26355225","ГУП СК \"Крайтеплоэнерго\"","2635060510","263501001","производство (некомбинированная выработка)+передача+сбыт","WARM"]
[273,"Ставропольский край","Красногвардейский муниципальный район","07630000","Медвеженский сельсовет","07630413","26355225","ГУП СК \"Крайтеплоэнерго\"","2635060510","263501001","производство (некомбинированная выработка)+передача+сбыт","WARM"]
[274,"Ставропольский край","Красногвардейский муниципальный район","07630000","Привольненский сельсовет","07630425","26355225","ГУП СК \"Крайтеплоэнерго\"","2635060510","263501001","производство (некомбинированная выработка)+передача+сбыт","WARM"]
[275,"Ставропольский край","Красногвардейский муниципальный район","07630000","Привольненский сельсовет","07630425","26322297","Северо-Кавказский филиал ООО \"Газпром энерго\"","7736186950","263602001","Передача+Сбыт","WARM"]
[276,"Ставропольский край","Красногвардейский муниципальный район","07630000","Привольненский сельсовет","07630425","26322297","Северо-Кавказский филиал ООО \"Газпром энерго\"","7736186950","263602001","производство (некомбинированная выработка)+передача","WARM"]
[277,"Ставропольский край","Красногвардейский муниципальный район","07630000","Привольненский сельсовет","07630425","26322297","Северо-Кавказский филиал ООО \"Газпром энерго\"","7736186950","263602001","производство (некомбинированная выработка)+передача+сбыт","WARM"]
[278,"Ставропольский край","Красногвардейский муниципальный район","07630000","Родыковский сельсовет","07630428","26355225","ГУП СК \"Крайтеплоэнерго\"","2635060510","263501001","производство (некомбинированная выработка)+передача+сбыт","WARM"]
[279,"Ставропольский край","Красногвардейский муниципальный район","07630000","Село Дмитриевское","07630402","26355225","ГУП СК \"Крайтеплоэнерго\"","2635060510","263501001","производство (некомбинированная выработка)+передача+сбыт","WARM"]
[280,"Ставропольский край","Красногвардейский муниципальный район","07630000","Село Красногвардейское","07630407","26355225","ГУП СК \"Крайтеплоэнерго\"","2635060510","263501001","производство (некомбинированная выработка)+передача+сбыт","WARM"]
[281,"Ставропольский край","Красногвардейский муниципальный район","07630000","Село Ладовская Балка","07630410","26355225","ГУП СК \"Крайтеплоэнерго\"","2635060510","263501001","производство (некомбинированная выработка)+передача+сбыт","WARM"]
[282,"Ставропольский край","Красногвардейский муниципальный район","07630000","Село Ладовская Балка","07630410","28450562","МУП \"Комбытсервис\"","2611007282","261101001","производство (некомбинированная выработка)+передача+сбыт","WARM"]
[283,"Ставропольский край","Красногвардейский муниципальный район","07630000","Село Новомихайловское","07630416","26355225","ГУП СК \"Крайтеплоэнерго\"","2635060510","263501001","производство (некомбинированная выработка)+передача+сбыт","WARM"]
[284,"Ставропольский край","Красногвардейский муниципальный район","07630000","Село Покровское","07630419","26355225","ГУП СК \"Крайтеплоэнерго\"","2635060510","263501001","производство (некомбинированная выработка)+передача+сбыт","WARM"]
[285,"Ставропольский край","Красногвардейский муниципальный район","07630000","Село Покровское","07630419","30376996","Тестовая организация ТЕСТ","7734520599","773401001","Передача","WARM"]
[286,"Ставропольский край","Красногвардейский муниципальный район","07630000","Село Преградное","07630422","26355225","ГУП СК \"Крайтеплоэнерго\"","2635060510","263501001","производство (некомбинированная выработка)+передача+сбыт","WARM"]
[287,"Ставропольский край","Красногвардейский муниципальный район","07630000","Штурмовский сельсовет","07630443","26355225","ГУП СК \"Крайтеплоэнерго\"","2635060510","263501001","производство (некомбинированная выработка)+передача+сбыт","WARM"]
[288,"Ставропольский край","Курский муниципальный район","07633000","Галюгаевский сельсовет","07633404","26355225","ГУП СК \"Крайтеплоэнерго\"","2635060510","263501001","производство (некомбинированная выработка)+передача+сбыт","WARM"]
[289,"Ставропольский край","Курский муниципальный район","07633000","Курский сельсовет","07633407","26355225","ГУП СК \"Крайтеплоэнерго\"","2635060510","263501001","производство (некомбинированная выработка)+передача+сбыт","WARM"]
[290,"Ставропольский край","Курский муниципальный район","07633000","Курский сельсовет","07633407","26355178","МУП КМР СК « ЖКХ Курского района»","2612016970","261201001","производство (некомбинированная выработка)+передача+сбыт","WARM"]
[291,"Ставропольский край","Курский муниципальный район","07633000","Курский сельсовет","07633407","30356084","Обособленное подразделение \"Ставропольское\" АО \"ГУ ЖКХ\"","5116000922","263445001","производство (некомбинированная выработка)+сбыт","WARM"]
[292,"Ставропольский край","Левокумский муниципальный район","07636000","Бургун-Маджарский сельсовет","07636402","26355225","ГУП СК \"Крайтеплоэнерго\"","2635060510","263501001","производство (некомбинированная выработка)+передача+сбыт","WARM"]
[293,"Ставропольский край","Левокумский муниципальный район","07636000","Величаевский сельсовет","07636404","26355225","ГУП СК \"Крайтеплоэнерго\"","2635060510","263501001","производство (некомбинированная выработка)+передача+сбыт","WARM"]
[294,"Ставропольский край","Левокумский муниципальный район","07636000","Заринский сельсовет","07636409","26355225","ГУП СК \"Крайтеплоэнерго\"","2635060510","263501001","производство (некомбинированная выработка)+передача+сбыт","WARM"]
[295,"Ставропольский край","Левокумский муниципальный район","07636000","Николо-Александровский сельсовет","07636413","26355225","ГУП СК \"Крайтеплоэнерго\"","2635060510","263501001","производство (некомбинированная выработка)+передача+сбыт","WARM"]
[296,"Ставропольский край","Левокумский муниципальный район","07636000","Поселок Новокумский","07636414","26355225","ГУП СК \"Крайтеплоэнерго\"","2635060510","263501001","производство (некомбинированная выработка)+передача+сбыт","WARM"]
[297,"Ставропольский край","Левокумский муниципальный район","07636000","Село Левокумское","07636410","26355225","ГУП СК \"Крайтеплоэнерго\"","2635060510","263501001","производство (некомбинированная выработка)+передача+сбыт","WARM"]
[298,"Ставропольский край","Левокумский муниципальный район","07636000","Село Правокумское","07636416","26355225","ГУП СК \"Крайтеплоэнерго\"","2635060510","263501001","производство (некомбинированная выработка)+передача+сбыт","WARM"]
[299,"Ставропольский край","Левокумский муниципальный район","07636000","Село Урожайное","07636422","26355225","ГУП СК \"Крайтеплоэнерго\"","2635060510","263501001","производство (некомбинированная выработка)+передача+сбыт","WARM"]
[300,"Ставропольский край","Минераловодский","07721000","Минераловодский","07721000","26355222","ГБУЗ СК \"ККБМР\"","2630019702","263001001","производство (некомбинированная выработка)+передача+сбыт","WARM"]
[301,"Ставропольский край","Минераловодский","07721000","Минераловодский","07721000","26355225","ГУП СК \"Крайтеплоэнерго\"","2635060510","263501001","производство (некомбинированная выработка)+передача+сбыт","WARM"]
[302,"Ставропольский край","Минераловодский","07721000","Минераловодский","07721000","26800337","ОАО \"Международный аэропорт Минеральные Воды\"","2630800970","263001001","производство (некомбинированная выработка)+передача+сбыт","WARM"]
[303,"Ставропольский край","Минераловодский","07721000","Минераловодский","07721000","26897146","ПАО \"Ставропласт\"","2630000067","263001001","производство (некомбинированная выработка)","WARM"]
[304,"Ставропольский край","Нефтекумский муниципальный район","07641000","Город Нефтекумск","07641101","26355225","ГУП СК \"Крайтеплоэнерго\"","2635060510","263501001","производство (некомбинированная выработка)+передача+сбыт","WARM"]
[305,"Ставропольский край","Нефтекумский муниципальный район","07641000","Город Нефтекумск","07641101","30376996","Тестовая организация ТЕСТ","7734520599","773401001","Передача","WARM"]
[306,"Ставропольский край","Нефтекумский муниципальный район","07641000","Зимнеставочный сельсовет","07641404","26355225","ГУП СК \"Крайтеплоэнерго\"","2635060510","263501001","производство (некомбинированная выработка)+передача+сбыт","WARM"]
[307,"Ставропольский край","Нефтекумский муниципальный район","07641000","Зункарский сельсовет","07641405","26355225","ГУП СК \"Крайтеплоэнерго\"","2635060510","263501001","производство (некомбинированная выработка)+передача+сбыт","WARM"]
[308,"Ставропольский край","Нефтекумский муниципальный район","07641000","Махмуд-Мектебский сельсовет","07641413","26355225","ГУП СК \"Крайтеплоэнерго\"","2635060510","263501001","производство (некомбинированная выработка)+передача+сбыт","WARM"]
[309,"Ставропольский край","Нефтекумский муниципальный район","07641000","Поселок Затеречный","07641153","26355225","ГУП СК \"Крайтеплоэнерго\"","2635060510","263501001","производство (некомбинированная выработка)+передача+сбыт","WARM"]
[310,"Ставропольский край","Нефтекумский муниципальный район","07641000","Село Ачикулак","07641402","26355225","ГУП СК \"Крайтеплоэнерго\"","2635060510","263501001","производство (некомбинированная выработка)+передача+сбыт","WARM"]
[311,"Ставропольский край","Нефтекумский муниципальный район","07641000","Тукуй-Мектебский сельсовет","07641422","26355225","ГУП СК \"Крайтеплоэнерго\"","2635060510","263501001","производство (некомбинированная выработка)+передача+сбыт","WARM"]
[312,"Ставропольский край","Новоалександровский муниципальный район","07643000","Город Новоалександровск","07643101","26355225","ГУП СК \"Крайтеплоэнерго\"","2635060510","263501001","производство (некомбинированная выработка)+передача+сбыт","WARM"]
[313,"Ставропольский край","Новоалександровский муниципальный район","07643000","Город Новоалександровск","07643101","26816056","Северо-Кавказская дирекция по тепловодоснабжению структурное подразделение Центральной дирекции по тепловодоснабжению - филиала ОАО \"РЖД\"","7708503727","616745019","производство (некомбинированная выработка)+передача+сбыт","WARM"]
[314,"Ставропольский край","Новоалександровский муниципальный район","07643000","Григорополисский сельсовет","07643404","26355225","ГУП СК \"Крайтеплоэнерго\"","2635060510","263501001","производство (некомбинированная выработка)+передача+сбыт","WARM"]
[315,"Ставропольский край","Новоалександровский муниципальный район","07643000","Краснозоринский сельсовет","07643407","26355225","ГУП СК \"Крайтеплоэнерго\"","2635060510","263501001","производство (некомбинированная выработка)+передача+сбыт","WARM"]
[316,"Ставропольский край","Новоалександровский муниципальный район","07643000","Красночервонный сельсовет","07643423","26355225","ГУП СК \"Крайтеплоэнерго\"","2635060510","263501001","производство (некомбинированная выработка)+передача+сбыт","WARM"]
[317,"Ставропольский край","Новоалександровский муниципальный район","07643000","Раздольненский сельсовет","07643413","26355225","ГУП СК \"Крайтеплоэнерго\"","2635060510","263501001","производство (некомбинированная выработка)+передача+сбыт","WARM"]
[318,"Ставропольский край","Новоалександровский муниципальный район","07643000","Светлинский сельсовет","07643417","26355225","ГУП СК \"Крайтеплоэнерго\"","2635060510","263501001","производство (некомбинированная выработка)+передача+сбыт","WARM"]
[319,"Ставропольский край","Новоалександровский муниципальный район","07643000","Темижбекский сельсовет","07643419","26355225","ГУП СК \"Крайтеплоэнерго\"","2635060510","263501001","производство (некомбинированная выработка)+передача+сбыт","WARM"]
[320,"Ставропольский край","Новоселицкий муниципальный район","07644000","Журавский сельсовет","07644404","26355225","ГУП СК \"Крайтеплоэнерго\"","2635060510","263501001","производство (некомбинированная выработка)+передача+сбыт","WARM"]
[321,"Ставропольский край","Новоселицкий муниципальный район","07644000","Новомаякский сельсовет","07644409","26355225","ГУП СК \"Крайтеплоэнерго\"","2635060510","263501001","производство (некомбинированная выработка)+передача+сбыт","WARM"]
[322,"Ставропольский край","Новоселицкий муниципальный район","07644000","Поселок Щелкан","07644420","26355225","ГУП СК \"Крайтеплоэнерго\"","2635060510","263501001","производство (некомбинированная выработка)+передача+сбыт","WARM"]
[323,"Ставропольский край","Новоселицкий муниципальный район","07644000","Село Долиновка","07644402","26355225","ГУП СК \"Крайтеплоэнерго\"","2635060510","263501001","производство (некомбинированная выработка)+передача+сбыт","WARM"]
[324,"Ставропольский край","Новоселицкий муниципальный район","07644000","Село Новоселицкое","07644410","26355225","ГУП СК \"Крайтеплоэнерго\"","2635060510","263501001","производство (некомбинированная выработка)+передача+сбыт","WARM"]
[325,"Ставропольский край","Новоселицкий муниципальный район","07644000","Село Новоселицкое","07644410","27507656","ОАО \"РЭУ\" Филиал Владикавказский","7714783092","151543001","производство (некомбинированная выработка)+передача+сбыт","WARM"]
[326,"Ставропольский край","Новоселицкий муниципальный район","07644000","Село Новоселицкое","07644410","30356084","Обособленное подразделение \"Ставропольское\" АО \"ГУ ЖКХ\"","5116000922","263445001","производство (некомбинированная выработка)+сбыт","WARM"]
[327,"Ставропольский край","Новоселицкий муниципальный район","07644000","Село Падинское","07644412","26355225","ГУП СК \"Крайтеплоэнерго\"","2635060510","263501001","производство (некомбинированная выработка)+передача+сбыт","WARM"]
[328,"Ставропольский край","Новоселицкий муниципальный район","07644000","Село Чернолесское","07644413","26355225","ГУП СК \"Крайтеплоэнерго\"","2635060510","263501001","производство (некомбинированная выработка)+передача+сбыт","WARM"]
[329,"Ставропольский край","Петровский муниципальный район","07646000","Город Светлоград","07646101","26838066","АО \"РЭУ\"","7714783092","774501001","производство (некомбинированная выработка)+передача+сбыт","WARM"]
[330,"Ставропольский край","Петровский муниципальный район","07646000","Город Светлоград","07646101","26355225","ГУП СК \"Крайтеплоэнерго\"","2635060510","263501001","производство (некомбинированная выработка)+передача+сбыт","WARM"]
[331,"Ставропольский край","Петровский муниципальный район","07646000","Город Светлоград","07646101","26816056","Северо-Кавказская дирекция по тепловодоснабжению структурное подразделение Центральной дирекции по тепловодоснабжению - филиала ОАО \"РЖД\"","7708503727","616745019","производство (некомбинированная выработка)+передача+сбыт","WARM"]
[332,"Ставропольский край","Петровский муниципальный район","07646000","Город Светлоград","07646101","26322297","Северо-Кавказский филиал ООО \"Газпром энерго\"","7736186950","263602001","Передача+Сбыт","WARM"]
[333,"Ставропольский край","Петровский муниципальный район","07646000","Город Светлоград","07646101","26322297","Северо-Кавказский филиал ООО \"Газпром энерго\"","7736186950","263602001","производство (некомбинированная выработка)+передача","WARM"]
[334,"Ставропольский край","Петровский муниципальный район","07646000","Город Светлоград","07646101","26322297","Северо-Кавказский филиал ООО \"Газпром энерго\"","7736186950","263602001","производство (некомбинированная выработка)+передача+сбыт","WARM"]
[335,"Ставропольский край","Петровский муниципальный район","07646000","Дон-Балковский сельсовет","07646410","26355225","ГУП СК \"Крайтеплоэнерго\"","2635060510","263501001","производство (некомбинированная выработка)+передача+сбыт","WARM"]
[336,"Ставропольский край","Петровский муниципальный район","07646000","Прикалаусский сельсовет","07646417","26355225","ГУП СК \"Крайтеплоэнерго\"","2635060510","263501001","производство (некомбинированная выработка)+передача+сбыт","WARM"]
[337,"Ставропольский край","Петровский муниципальный район","07646000","Село Благодатное","07646402","26414029","МКП \"Надежда\" МО с. Благодатное Петровского района Ставропольского края","2617013148","261701001","производство (некомбинированная выработка)+сбыт","WARM"]
[338,"Ставропольский край","Петровский муниципальный район","07646000","Село Гофицкое","07646407","26355225","ГУП СК \"Крайтеплоэнерго\"","2635060510","263501001","производство (некомбинированная выработка)+передача+сбыт","WARM"]
[339,"Ставропольский край","Петровский муниципальный район","07646000","Село Сухая Буйвола","07646422","26355225","ГУП СК \"Крайтеплоэнерго\"","2635060510","263501001","производство (некомбинированная выработка)+передача+сбыт","WARM"]
[340,"Ставропольский край","Петровский муниципальный район","07646000","Село Шведино","07646428","26355225","ГУП СК \"Крайтеплоэнерго\"","2635060510","263501001","производство (некомбинированная выработка)+передача+сбыт","WARM"]
[341,"Ставропольский край","Предгорный муниципальный район","07648000","Винсадский сельсовет","07648410","26355225","ГУП СК \"Крайтеплоэнерго\"","2635060510","263501001","производство (некомбинированная выработка)+передача+сбыт","WARM"]
[342,"Ставропольский край","Предгорный муниципальный район","07648000","Ессентукский сельсовет","07648413","26355225","ГУП СК \"Крайтеплоэнерго\"","2635060510","263501001","производство (некомбинированная выработка)+передача+сбыт","WARM"]
[343,"Ставропольский край","Предгорный муниципальный район","07648000","Ессентукский сельсовет","07648413","27507656","ОАО \"РЭУ\" Филиал Владикавказский","7714783092","151543001","производство (некомбинированная выработка)+передача+сбыт","WARM"]
[344,"Ставропольский край","Предгорный муниципальный район","07648000","Ессентукский сельсовет","07648413","30356084","Обособленное подразделение \"Ставропольское\" АО \"ГУ ЖКХ\"","5116000922","263445001","производство (некомбинированная выработка)+сбыт","WARM"]
[345,"Ставропольский край","Предгорный муниципальный район","07648000","Нежинский сельсовет","07648416","26355225","ГУП СК \"Крайтеплоэнерго\"","2635060510","263501001","производство (некомбинированная выработка)+передача+сбыт","WARM"]
[346,"Ставропольский край","Предгорный муниципальный район","07648000","Новоблагодарненский сельсовет","07648422","26355225","ГУП СК \"Крайтеплоэнерго\"","2635060510","263501001","производство (некомбинированная выработка)+передача+сбыт","WARM"]
[347,"Ставропольский край","Предгорный муниципальный район","07648000","Подкумский сельсовет","07648424","26355225","ГУП СК \"Крайтеплоэнерго\"","2635060510","263501001","производство (некомбинированная выработка)+передача+сбыт","WARM"]
[348,"Ставропольский край","Предгорный муниципальный район","07648000","Пятигорский сельсовет","07648428","26355225","ГУП СК \"Крайтеплоэнерго\"","2635060510","263501001","производство (некомбинированная выработка)+передача+сбыт","WARM"]
[349,"Ставропольский край","Предгорный муниципальный район","07648000","Станица Бекешевская","07648402","26355225","ГУП СК \"Крайтеплоэнерго\"","2635060510","263501001","производство (некомбинированная выработка)+передача+сбыт","WARM"]
[350,"Ставропольский край","Предгорный муниципальный район","07648000","Станица Боргустанская","07648407","26355225","ГУП СК \"Крайтеплоэнерго\"","2635060510","263501001","производство (некомбинированная выработка)+передача+сбыт","WARM"]
[351,"Ставропольский край","Предгорный муниципальный район","07648000","Суворовский сельсовет","07648431","26355225","ГУП СК \"Крайтеплоэнерго\"","2635060510","263501001","производство (некомбинированная выработка)+передача+сбыт","WARM"]
[352,"Ставропольский край","Предгорный муниципальный район","07648000","Тельмановский сельсовет","07648432","26355225","ГУП СК \"Крайтеплоэнерго\"","2635060510","263501001","производство (некомбинированная выработка)+передача+сбыт","WARM"]
[353,"Ставропольский край","Предгорный муниципальный район","07648000","Этокский сельсовет","07648434","26355225","ГУП СК \"Крайтеплоэнерго\"","2635060510","263501001","производство (некомбинированная выработка)+передача+сбыт","WARM"]
[354,"Ставропольский край","Предгорный муниципальный район","07648000","Юцкий сельсовет","07648437","26355225","ГУП СК \"Крайтеплоэнерго\"","2635060510","263501001","производство (некомбинированная выработка)+передача+сбыт","WARM"]
[355,"Ставропольский край","Предгорный муниципальный район","07648000","Яснополянский сельсовет","07648440","26355225","ГУП СК \"Крайтеплоэнерго\"","2635060510","263501001","производство (некомбинированная выработка)+передача+сбыт","WARM"]
[356,"Ставропольский край","Советский муниципальный район","07650000","Восточный сельсовет","07650402","26355225","ГУП СК \"Крайтеплоэнерго\"","2635060510","263501001","производство (некомбинированная выработка)+передача+сбыт","WARM"]
[357,"Ставропольский край","Советский муниципальный район","07650000","Город Зеленокумск","07650101","26355225","ГУП СК \"Крайтеплоэнерго\"","2635060510","263501001","производство (некомбинированная выработка)+передача+сбыт","WARM"]
[358,"Ставропольский край","Советский муниципальный район","07650000","Город Зеленокумск","07650101","26568925","Общество с ограниченной ответственностью \"Топаз+\"","2619006227","261901001","производство (некомбинированная выработка)+передача+сбыт","WARM"]
[359,"Ставропольский край","Советский муниципальный район","07650000","Город Зеленокумск","07650101","26816056","Северо-Кавказская дирекция по тепловодоснабжению структурное подразделение Центральной дирекции по тепловодоснабжению - филиала ОАО \"РЖД\"","7708503727","616745019","производство (некомбинированная выработка)+передача+сбыт","WARM"]
[360,"Ставропольский край","Советский муниципальный район","07650000","Нинский сельсовет","07650407","26355225","ГУП СК \"Крайтеплоэнерго\"","2635060510","263501001","производство (некомбинированная выработка)+передача+сбыт","WARM"]
[361,"Ставропольский край","Советский муниципальный район","07650000","Солдато-Александровский сельсовет","07650416","26355225","ГУП СК \"Крайтеплоэнерго\"","2635060510","263501001","производство (некомбинированная выработка)+передача+сбыт","WARM"]
[362,"Ставропольский край","Советский муниципальный район","07650000","Солдато-Александровский сельсовет","07650416","26816056","Северо-Кавказская дирекция по тепловодоснабжению структурное подразделение Центральной дирекции по тепловодоснабжению - филиала ОАО \"РЖД\"","7708503727","616745019","производство (некомбинированная выработка)+передача+сбыт","WARM"]
[363,"Ставропольский край","Степновский муниципальный район","07652000","Степновский сельсовет","07652426","26838066","АО \"РЭУ\"","7714783092","774501001","производство (некомбинированная выработка)+передача+сбыт","WARM"]
[364,"Ставропольский край","Степновский муниципальный район","07652000","Степновский сельсовет","07652426","26355182","МУП \"КХ\" Степновского муниципального района Ставропольского края","2620000580","262001001","производство (некомбинированная выработка)+передача+сбыт","WARM"]
[365,"Ставропольский край","Степновский муниципальный район","07652000","Степновский сельсовет","07652426","30356084","Обособленное подразделение \"Ставропольское\" АО \"ГУ ЖКХ\"","5116000922","263445001","Передача+Сбыт","WARM"]
[366,"Ставропольский край","Труновский муниципальный район","07654000","Безопасненский сельсовет","07654402","26355225","ГУП СК \"Крайтеплоэнерго\"","2635060510","263501001","производство (некомбинированная выработка)+передача+сбыт","WARM"]
[367,"Ставропольский край","Труновский муниципальный район","07654000","Донской сельсовет","07654404","26355225","ГУП СК \"Крайтеплоэнерго\"","2635060510","263501001","производство (некомбинированная выработка)+передача+сбыт","WARM"]
[368,"Ставропольский край","Труновский муниципальный район","07654000","Село Новая Кугульта","07654410","26355225","ГУП СК \"Крайтеплоэнерго\"","2635060510","263501001","производство (некомбинированная выработка)+передача+сбыт","WARM"]
[369,"Ставропольский край","Труновский муниципальный район","07654000","Село Подлесное","07654413","26355225","ГУП СК \"Крайтеплоэнерго\"","2635060510","263501001","производство (некомбинированная выработка)+передача+сбыт","WARM"]
[370,"Ставропольский край","Труновский муниципальный район","07654000","Труновский сельсовет","07654416","26355225","ГУП СК \"Крайтеплоэнерго\"","2635060510","263501001","производство (некомбинированная выработка)+передача+сбыт","WARM"]
[371,"Ставропольский край","Туркменский муниципальный район","07656000","Летнеставочный сельсовет","07656419","26355183","МУП КХ Туркменского района","2622003515","262201001","производство (некомбинированная выработка)+передача+сбыт","WARM"]
[372,"Ставропольский край","Туркменский муниципальный район","07656000","Летнеставочный сельсовет","07656419","27507656","ОАО \"РЭУ\" Филиал Владикавказский","7714783092","151543001","производство (некомбинированная выработка)+передача+сбыт","WARM"]
[373,"Ставропольский край","Туркменский муниципальный район","07656000","Летнеставочный сельсовет","07656419","30356084","Обособленное подразделение \"Ставропольское\" АО \"ГУ ЖКХ\"","5116000922","263445001","производство (некомбинированная выработка)+сбыт","WARM"]
[374,"Ставропольский край","Шпаковский муниципальный район","07658000","Город Михайловск","07658101","26355225","ГУП СК \"Крайтеплоэнерго\"","2635060510","263501001","производство (некомбинированная выработка)+передача+сбыт","WARM"]
[375,"Ставропольский край","Шпаковский муниципальный район","07658000","Город Михайловск","07658101","30356084","Обособленное подразделение \"Ставропольское\" АО \"ГУ ЖКХ\"","5116000922","263445001","производство (некомбинированная выработка)+сбыт","WARM"]
[376,"Ставропольский край","Шпаковский муниципальный район","07658000","Деминский сельсовет","07658404","26355225","ГУП СК \"Крайтеплоэнерго\"","2635060510","263501001","производство (некомбинированная выработка)+передача+сбыт","WARM"]
[377,"Ставропольский край","Шпаковский муниципальный район","07658000","Дубовский сельсовет","07658406","26355225","ГУП СК \"Крайтеплоэнерго\"","2635060510","263501001","производство (некомбинированная выработка)+передача+сбыт","WARM"]
[378,"Ставропольский край","Шпаковский муниципальный район","07658000","Казинский сельсовет","07658408","26355225","ГУП СК \"Крайтеплоэнерго\"","2635060510","263501001","производство (некомбинированная выработка)+передача+сбыт","WARM"]
[379,"Ставропольский край","Шпаковский муниципальный район","07658000","Надеждинский сельсовет","07658410","26355225","ГУП СК \"Крайтеплоэнерго\"","2635060510","263501001","производство (некомбинированная выработка)+передача+сбыт","WARM"]
[380,"Ставропольский край","Шпаковский муниципальный район","07658000","Пелагиадский сельсовет","07658416","26355225","ГУП СК \"Крайтеплоэнерго\"","2635060510","263501001","производство (некомбинированная выработка)+передача+сбыт","WARM"]
[381,"Ставропольский край","Шпаковский муниципальный район","07658000","Сенгилеевский сельсовет","07658419","26355225","ГУП СК \"Крайтеплоэнерго\"","2635060510","263501001","производство (некомбинированная выработка)+передача+сбыт","WARM"]
[382,"Ставропольский край","Шпаковский муниципальный район","07658000","Станица Новомарьевская","07658413","26355225","ГУП СК \"Крайтеплоэнерго\"","2635060510","263501001","производство (некомбинированная выработка)+передача+сбыт","WARM"]
[383,"Ставропольский край","Шпаковский муниципальный район","07658000","Татарский сельсовет","07658422","26355225","ГУП СК \"Крайтеплоэнерго\"","2635060510","263501001","производство (некомбинированная выработка)+передача+сбыт","WARM"]
[384,"Ставропольский край","Шпаковский муниципальный район","07658000","Темнолесский сельсовет","07658425","26355225","ГУП СК \"Крайтеплоэнерго\"","2635060510","263501001","производство (некомбинированная выработка)+передача+сбыт","WARM"]

{"sheet":"modClassifierValidate","index":22,"n_rows":0,"n_cols":0,"rows_kept":0,"cut":false,"hidden":true,"merged":[]}

{"sheet":"modHyp","index":23,"n_rows":0,"n_cols":0,"rows_kept":0,"cut":false,"hidden":true,"merged":[]}

{"sheet":"modList03","index":24,"n_rows":0,"n_cols":0,"rows_kept":0,"cut":false,"hidden":true,"merged":[]}

{"sheet":"modfrmDateChoose","index":25,"n_rows":0,"n_cols":0,"rows_kept":0,"cut":false,"hidden":true,"merged":[]}

{"sheet":"modComm","index":26,"n_rows":0,"n_cols":0,"rows_kept":0,"cut":false,"hidden":true,"merged":[]}

{"sheet":"modThisWorkbook","index":27,"n_rows":0,"n_cols":0,"rows_kept":0,"cut":false,"hidden":true,"merged":[]}

{"sheet":"REESTR_MO","index":28,"n_rows":332,"n_cols":4,"rows_kept":332,"cut":false,"hidden":true,"merged":[]}
["№","МР","МО","МО_ОКТМО"]
[1,"Александровский муниципальный район","Александровский муниципальный район","07602000"]
[2,"Александровский муниципальный район","Александровский сельсовет","07602402"]
[3,"Александровский муниципальный район","Калиновский сельсовет","07602407"]
[4,"Александровский муниципальный район","Круглолесский сельсовет","07602410"]
[5,"Александровский муниципальный район","Новокавказский сельсовет","07602413"]
[6,"Александровский муниципальный район","Саблинский сельсовет","07602416"]
[7,"Александровский муниципальный район","Село Грушевское","07602404"]
[8,"Александровский муниципальный район","Село Северное","07602419"]
[9,"Александровский муниципальный район","Средненский сельсовет","07602422"]
[10,"Андроповский муниципальный район","Андроповский муниципальный район","07632000"]
[11,"Андроповский муниципальный район","Водораздельный сельсовет","07632402"]
[12,"Андроповский муниципальный район","Казинский сельсовет","07632406"]
[13,"Андроповский муниципальный район","Красноярский сельсовет","07632407"]
[14,"Андроповский муниципальный район","Курсавский сельсовет","07632410"]
[15,"Андроповский муниципальный район","Куршавский сельсовет","07632412"]
[16,"Андроповский муниципальный район","Новоянкульский сельсовет","07632414"]
[17,"Андроповский муниципальный район","Село Крымгиреевское","07632408"]
[18,"Андроповский муниципальный район","Село Султан","07632419"]
[19,"Андроповский муниципальный район","Солуно-Дмитриевский сельсовет","07632416"]
[20,"Андроповский муниципальный район","Станица Воровсколесская","07632404"]
[21,"Андроповский муниципальный район","Янкульский сельсовет","07632422"]
[22,"Апанасенковский муниципальный район","Айгурский сельсовет","07605402"]
[23,"Апанасенковский муниципальный район","Апанасенковский муниципальный район","07605000"]
[24,"Апанасенковский муниципальный район","Дербетовский сельсовет","07605416"]
[25,"Апанасенковский муниципальный район","Село Апанасенковское","07605404"]
[26,"Апанасенковский муниципальный район","Село Белые Копани","07605407"]
[27,"Апанасенковский муниципальный район","Село Воздвиженское","07605410"]
[28,"Апанасенковский муниципальный район","Село Вознесеновское","07605413"]
[29,"Апанасенковский муниципальный район","Село Дивное","07605419"]
[30,"Апанасенковский муниципальный район","Село Киевка","07605422"]
[31,"Апанасенковский муниципальный район","Село Малая Джалга","07605425"]
[32,"Апанасенковский муниципальный район","Село Манычское","07605428"]
[33,"Апанасенковский муниципальный район","Село Рагули","07605431"]
[34,"Арзгирский муниципальный район","Арзгирский муниципальный район","07607000"]
[35,"Арзгирский муниципальный район","Арзгирский сельсовет","07607402"]
[36,"Арзгирский муниципальный район","Новоромановский сельсовет","07607404"]
[37,"Арзгирский муниципальный район","Село Каменная Балка","07607403"]
[38,"Арзгирский муниципальный район","Село Петропавловское","07607407"]
[39,"Арзгирский муниципальный район","Село Родниковское","07607410"]
[40,"Арзгирский муниципальный район","Село Садовое","07607413"]
[41,"Арзгирский муниципальный район","Село Серафимовское","07607416"]
[42,"Арзгирский муниципальный район","Чограйский сельсовет","07607422"]
[43,"Благодарненский муниципальный район","Cело Елизаветинское","07610410"]
[44,"Благодарненский муниципальный район","Александрийский сельсовет","07610402"]
[45,"Благодарненский муниципальный район","Аул Эдельбай","07610428"]
[46,"Благодарненский муниципальный район","Благодарненский муниципальный район","07610000"]
[47,"Благодарненский муниципальный район","Город Благодарный","07610101"]
[48,"Благодарненский муниципальный район","Каменнобалковский сельсовет","07610413"]
[49,"Благодарненский муниципальный район","Красноключевский сельсовет","07610416"]
[50,"Благодарненский муниципальный район","Село Алексеевское","07610404"]
[51,"Благодарненский муниципальный район","Село Бурлацкое","07610407"]
[52,"Благодарненский муниципальный район","Село Мирное","07610417"]
[53,"Благодарненский муниципальный район","Село Сотниковское","07610419"]
[54,"Благодарненский муниципальный район","Село Спасское","07610422"]
[55,"Благодарненский муниципальный район","Село Шишкино","07610427"]
[56,"Благодарненский муниципальный район","Ставропольский сельсовет","07610425"]
[57,"Благодарненский муниципальный район","Хутор Большевик","07610406"]
[58,"Буденновский муниципальный район","Архиповский сельсовет","07612404"]
[59,"Буденновский муниципальный район","Буденновский муниципальный район","07612000"]
[60,"Буденновский муниципальный район","Искровский сельсовет","07612407"]
[61,"Буденновский муниципальный район","Краснооктябрьский сельсовет","07612409"]
[62,"Буденновский муниципальный район","Новожизненский сельсовет","07612410"]
[63,"Буденновский муниципальный район","Орловский сельсовет","07612413"]
[64,"Буденновский муниципальный район","Покойненский сельсовет","07612416"]
[65,"Буденновский муниципальный район","Преображенский сельсовет","07612420"]
[66,"Буденновский муниципальный район","Село Архангельское","07612402"]
[67,"Буденновский муниципальный район","Село Прасковея","07612419"]
[68,"Буденновский муниципальный район","Село Толстово-Васюковское","07612427"]
[69,"Буденновский муниципальный район","Стародубский сельсовет","07612422"]
[70,"Буденновский муниципальный район","Терский сельсовет","07612425"]
[71,"Буденновский муниципальный район","Томузловский сельсовет","07612429"]
[72,"ГО Ставропольского края","ГО Ставропольского края","07700000"]
[73,"Георгиевский муниципальный район","Александрийский сельсовет","07615402"]
[74,"Георгиевский муниципальный район","Балковский сельсовет","07615403"]
[75,"Георгиевский муниципальный район","Георгиевский муниципальный район","07615000"]
[76,"Георгиевский муниципальный район","Крутоярский сельсовет","07615408"]
[77,"Георгиевский муниципальный район","Незлобненский сельсовет","07615413"]
[78,"Георгиевский муниципальный район","Поселок Новый","07615415"]
[79,"Георгиевский муниципальный район","Село Краснокумское","07615406"]
[80,"Георгиевский муниципальный район","Село Новозаведенное","07615416"]
[81,"Георгиевский муниципальный район","Село Обильное","07615419"]
[82,"Георгиевский муниципальный район","Станица Георгиевская","07615404"]
[83,"Георгиевский муниципальный район","Станица Лысогорская","07615410"]
[84,"Георгиевский муниципальный район","Станица Подгорная","07615422"]
[85,"Георгиевский муниципальный район","Ульяновский сельсовет","07615425"]
[86,"Георгиевский муниципальный район","Урухский сельсовет","07615428"]
[87,"Георгиевский муниципальный район","Шаумяновский сельсовет","07615431"]
[88,"Город Буденновск","Город Буденновск","07702000"]
[89,"Город Георгиевск","Город Георгиевск","07707000"]
[90,"Город Лермонтов","Город Лермонтов","07718000"]
[91,"Город Невинномысск","Город Невинномысск","07724000"]
[92,"Город Ставрополь","Город Ставрополь","07701000"]
[93,"Город-курорт Ессентуки","Город-курорт Ессентуки","07710000"]
[94,"Город-курорт Железноводск","Город-курорт Железноводск","07712000"]
[95,"Город-курорт Кисловодск","Город-курорт Кисловодск","07715000"]
[96,"Город-курорт Пятигорск","Город-курорт Пятигорск","07727000"]
[97,"Грачевский муниципальный район","Грачевский муниципальный район","07617000"]
[98,"Грачевский муниципальный район","Грачевский сельсовет","07617404"]
[99,"Грачевский муниципальный район","Красный сельсовет","07617407"]
[100,"Грачевский муниципальный район","Кугультинский сельсовет","07617410"]
[101,"Грачевский муниципальный район","Село Бешпагир","07617401"]
[102,"Грачевский муниципальный район","Село Тугулук","07617422"]
[103,"Грачевский муниципальный район","Сергиевский сельсовет","07617413"]
[104,"Грачевский муниципальный район","Спицевский сельсовет","07617416"]
[105,"Грачевский муниципальный район","Старомарьевский сельсовет","07617419"]
[106,"Изобильненский муниципальный район","Город Изобильный","07620101"]
[107,"Изобильненский муниципальный район","Изобильненский муниципальный район","07620000"]
[108,"Изобильненский муниципальный район","Каменнобродский сельсовет","07620404"]
[109,"Изобильненский муниципальный район","Московский сельсовет","07620407"]
[110,"Изобильненский муниципальный район","Новоизобильненский сельсовет","07620409"]
[111,"Изобильненский муниципальный район","Передовой сельсовет","07620412"]
[112,"Изобильненский муниципальный район","Подлужненский сельсовет","07620413"]
[113,"Изобильненский муниципальный район","Поселок Рыздвяный","07620153"]
[114,"Изобильненский муниципальный район","Поселок Солнечнодольск","07620155"]
[115,"Изобильненский муниципальный район","Рождественский сельсовет","07620416"]
[116,"Изобильненский муниципальный район","Село Птичье","07620414"]
[117,"Изобильненский муниципальный район","Село Тищенское","07620422"]
[118,"Изобильненский муниципальный район","Станица Баклановская","07620402"]
[119,"Изобильненский муниципальный район","Станица Новотроицкая","07620410"]
[120,"Изобильненский муниципальный район","Староизобильненский сельсовет","07620419"]
[121,"Изобильненский муниципальный район","Хутор Спорный","07620418"]
[122,"Ипатовский муниципальный район","Большевистский сельсовет","07622402"]
[123,"Ипатовский муниципальный район","Винодельненский сельсовет","07622410"]
[124,"Ипатовский муниципальный район","Город Ипатово","07622101"]
[125,"Ипатовский муниципальный район","Добровольно-Васильевский сельсовет","07622413"]
[126,"Ипатовский муниципальный район","Золотаревский сельсовет","07622416"]
[127,"Ипатовский муниципальный район","Ипатовский муниципальный район","07622000"]
[128,"Ипатовский муниципальный район","Кевсалинский сельсовет","07622422"]
[129,"Ипатовский муниципальный район","Красочный сельсовет","07622425"]
[130,"Ипатовский муниципальный район","Леснодачненский сельсовет","07622427"]
[131,"Ипатовский муниципальный район","Лиманский сельсовет","07622428"]
[132,"Ипатовский муниципальный район","Мало-Барханчакский сельсовет","07622429"]
[133,"Ипатовский муниципальный район","Октябрьский сельсовет","07622431"]
[134,"Ипатовский муниципальный район","Первомайский сельсовет","07622434"]
[135,"Ипатовский муниципальный район","Село Большая Джалга","07622404"]
[136,"Ипатовский муниципальный район","Село Бурукшун","07622407"]
[137,"Ипатовский муниципальный район","Советскорунный сельсовет","07622437"]
[138,"Ипатовский муниципальный район","Тахтинский сельсовет","07622440"]
[139,"Кировский муниципальный район","Горнозаводской сельсовет","07625402"]
[140,"Кировский муниципальный район","Город Новопавловск","07625101"]
[141,"Кировский муниципальный район","Зольский сельсовет","07625404"]
[142,"Кировский муниципальный район","Кировский муниципальный район","07625000"]
[143,"Кировский муниципальный район","Комсомольский сельсовет","07625407"]
[144,"Кировский муниципальный район","Новосредненский сельсовет","07625416"]
[145,"Кировский муниципальный район","Орловский сельсовет","07625417"]
[146,"Кировский муниципальный район","Посёлок Фазанный","07625428"]
[147,"Кировский муниципальный район","Советский сельсовет","07625419"]
[148,"Кировский муниципальный район","Станица Марьинская","07625410"]
[149,"Кировский муниципальный район","Старопавловский сельсовет","07625422"]
[150,"Кочубеевский муниципальный район","Балахоновский сельсовет","07628402"]
[151,"Кочубеевский муниципальный район","Барсуковский сельсовет","07628404"]
[152,"Кочубеевский муниципальный район","Васильевский сельсовет","07628440"]
[153,"Кочубеевский муниципальный район","Вревский сельсовет","07628407"]
[154,"Кочубеевский муниципальный район","Георгиевский сельсовет","07628408"]
[155,"Кочубеевский муниципальный район","Заветненский сельсовет","07628413"]
[156,"Кочубеевский муниципальный район","Ивановский сельсовет","07628416"]
[157,"Кочубеевский муниципальный район","Казьминский сельсовет","07628419"]
[158,"Кочубеевский муниципальный район","Кочубеевский муниципальный район","07628000"]
[159,"Кочубеевский муниципальный район","Мищенский сельсовет","07628423"]
[160,"Кочубеевский муниципальный район","Надзорненский сельсовет","07628424"]
[161,"Кочубеевский муниципальный район","Новодеревенский сельсовет","07628425"]
[162,"Кочубеевский муниципальный район","Село Кочубеевское","07628422"]
[163,"Кочубеевский муниципальный район","Станица Беломечетская","07628406"]
[164,"Кочубеевский муниципальный район","Стародворцовский сельсовет","07628430"]
[165,"Кочубеевский муниципальный район","Усть-Невинский сельсовет","07628435"]
[166,"Красногвардейский муниципальный район","Коммунаровский сельсовет","07630404"]
[167,"Красногвардейский муниципальный район","Красногвардейский муниципальный район","07630000"]
[168,"Красногвардейский муниципальный район","Медвеженский сельсовет","07630413"]
[169,"Красногвардейский муниципальный район","Привольненский сельсовет","07630425"]
[170,"Красногвардейский муниципальный район","Родыковский сельсовет","07630428"]
[171,"Красногвардейский муниципальный район","Село Дмитриевское","07630402"]
[172,"Красногвардейский муниципальный район","Село Красногвардейское","07630407"]
[173,"Красногвардейский муниципальный район","Село Ладовская Балка","07630410"]
[174,"Красногвардейский муниципальный район","Село Новомихайловское","07630416"]
[175,"Красногвардейский муниципальный район","Село Покровское","07630419"]
[176,"Красногвардейский муниципальный район","Село Преградное","07630422"]
[177,"Красногвардейский муниципальный район","Штурмовский сельсовет","07630443"]
[178,"Курский муниципальный район","Балтийский сельсовет","07633402"]
[179,"Курский муниципальный район","Галюгаевский сельсовет","07633404"]
[180,"Курский муниципальный район","Кановский сельсовет","07633406"]
[181,"Курский муниципальный район","Курский муниципальный район","07633000"]
[182,"Курский муниципальный район","Курский сельсовет","07633407"]
[183,"Курский муниципальный район","Мирненский сельсовет","07633410"]
[184,"Курский муниципальный район","Полтавский сельсовет","07633413"]
[185,"Курский муниципальный район","Ростовановский сельсовет","07633416"]
[186,"Курский муниципальный район","Рощинский сельсовет","07633419"]
[187,"Курский муниципальный район","Русский сельсовет","07633422"]
[188,"Курский муниципальный район","Село Эдиссия","07633428"]
[189,"Курский муниципальный район","Серноводский сельсовет","07633425"]
[190,"Курский муниципальный район","Станица Стодеревская","07633426"]
[191,"Левокумский муниципальный район","Бургун-Маджарский сельсовет","07636402"]
[192,"Левокумский муниципальный район","Величаевский сельсовет","07636404"]
[193,"Левокумский муниципальный район","Владимировский сельсовет","07636407"]
[194,"Левокумский муниципальный район","Заринский сельсовет","07636409"]
[195,"Левокумский муниципальный район","Левокумский муниципальный район","07636000"]
[196,"Левокумский муниципальный район","Николо-Александровский сельсовет","07636413"]
[197,"Левокумский муниципальный район","Поселок Новокумский","07636414"]
[198,"Левокумский муниципальный район","Село Левокумское","07636410"]
[199,"Левокумский муниципальный район","Село Правокумское","07636416"]
[200,"Левокумский муниципальный район","Село Приозерское","07636417"]
[201,"Левокумский муниципальный район","Село Урожайное","07636422"]
[202,"Левокумский муниципальный район","Турксадский сельсовет","07636419"]
[203,"Минераловодский муниципальный район","Город Минеральные Воды","07639101"]
[204,"Минераловодский муниципальный район","Гражданский сельсовет","07639402"]
[205,"Минераловодский муниципальный район","Левокумский сельсовет","07639421"]
[206,"Минераловодский муниципальный район","Ленинский сельсовет","07639407"]
[207,"Минераловодский муниципальный район","Марьино-Колодцевский сельсовет","07639410"]
[208,"Минераловодский муниципальный район","Минераловодский муниципальный район","07639000"]
[209,"Минераловодский муниципальный район","Нижнеалександровский сельсовет","07639416"]
[210,"Минераловодский муниципальный район","Первомайский сельсовет","07639418"]
[211,"Минераловодский муниципальный район","Перевальненский сельсовет","07639420"]
[212,"Минераловодский муниципальный район","Побегайловский сельсовет","07639419"]
[213,"Минераловодский муниципальный район","Поселок Анджиевский","07639152"]
[214,"Минераловодский муниципальный район","Прикумский сельсовет","07639422"]
[215,"Минераловодский муниципальный район","Розовский сельсовет","07639425"]
[216,"Минераловодский муниципальный район","Село Греческое","07639404"]
[217,"Минераловодский муниципальный район","Село Нагутское","07639413"]
[218,"Минераловодский муниципальный район","Ульяновский сельсовет","07639430"]
[219,"Нефтекумский муниципальный район","Город Нефтекумск","07641101"]
[220,"Нефтекумский муниципальный район","Закумский сельсовет","07641403"]
[221,"Нефтекумский муниципальный район","Зимнеставочный сельсовет","07641404"]
[222,"Нефтекумский муниципальный район","Зункарский сельсовет","07641405"]
[223,"Нефтекумский муниципальный район","Кара-Тюбинский сельсовет","07641407"]
[224,"Нефтекумский муниципальный район","Каясулинский сельсовет","07641410"]
[225,"Нефтекумский муниципальный район","Махмуд-Мектебский сельсовет","07641413"]
[226,"Нефтекумский муниципальный район","Нефтекумский муниципальный район","07641000"]
[227,"Нефтекумский муниципальный район","Новкус-Артезианский сельсовет","07641416"]
[228,"Нефтекумский муниципальный район","Озек-Суатский сельсовет","07641419"]
[229,"Нефтекумский муниципальный район","Поселок Затеречный","07641153"]
[230,"Нефтекумский муниципальный район","Село Ачикулак","07641402"]
[231,"Нефтекумский муниципальный район","Тукуй-Мектебский сельсовет","07641422"]
[232,"Новоалександровский муниципальный район","Город Новоалександровск","07643101"]
[233,"Новоалександровский муниципальный район","Горьковский сельсовет","07643402"]
[234,"Новоалександровский муниципальный район","Григорополисский сельсовет","07643404"]
[235,"Новоалександровский муниципальный район","Краснозоринский сельсовет","07643407"]
[236,"Новоалександровский муниципальный район","Красночервонный сельсовет","07643423"]
[237,"Новоалександровский муниципальный район","Новоалександровский муниципальный район","07643000"]
[238,"Новоалександровский муниципальный район","Присадовый сельсовет","07643410"]
[239,"Новоалександровский муниципальный район","Радужский сельсовет","07643412"]
[240,"Новоалександровский муниципальный район","Раздольненский сельсовет","07643413"]
[241,"Новоалександровский муниципальный район","Светлинский сельсовет","07643417"]
[242,"Новоалександровский муниципальный район","Станица Кармалиновская","07643406"]
[243,"Новоалександровский муниципальный район","Станица Расшеватская","07643416"]
[244,"Новоалександровский муниципальный район","Темижбекский сельсовет","07643419"]
[245,"Новоселицкий муниципальный район","Журавский сельсовет","07644404"]
[246,"Новоселицкий муниципальный район","Новомаякский сельсовет","07644409"]
[247,"Новоселицкий муниципальный район","Новоселицкий муниципальный район","07644000"]
[248,"Новоселицкий муниципальный район","Поселок Щелкан","07644420"]
[249,"Новоселицкий муниципальный район","Село Долиновка","07644402"]
[250,"Новоселицкий муниципальный район","Село Китаевское","07644407"]
[251,"Новоселицкий муниципальный район","Село Новоселицкое","07644410"]
[252,"Новоселицкий муниципальный район","Село Падинское","07644412"]
[253,"Новоселицкий муниципальный район","Село Чернолесское","07644413"]
[254,"Петровский муниципальный район","Высоцкий сельсовет","07646404"]
[255,"Петровский муниципальный район","Город Светлоград","07646101"]
[256,"Петровский муниципальный район","Дон-Балковский сельсовет","07646410"]
[257,"Петровский муниципальный район","Константиновский сельсовет","07646413"]
[258,"Петровский муниципальный район","Петровский муниципальный район","07646000"]
[259,"Петровский муниципальный район","Прикалаусский сельсовет","07646417"]
[260,"Петровский муниципальный район","Просянский сельсовет","07646418"]
[261,"Петровский муниципальный район","Рогато-Балковский сельсовет","07646419"]
[262,"Петровский муниципальный район","Село Благодатное","07646402"]
[263,"Петровский муниципальный район","Село Гофицкое","07646407"]
[264,"Петровский муниципальный район","Село Николина Балка","07646416"]
[265,"Петровский муниципальный район","Село Сухая Буйвола","07646422"]
[266,"Петровский муниципальный район","Село Шведино","07646428"]
[267,"Петровский муниципальный район","Шангалинский сельсовет","07646425"]
[268,"Предгорный муниципальный район","Винсадский сельсовет","07648410"]
[269,"Предгорный муниципальный район","Ессентукский сельсовет","07648413"]
[270,"Предгорный муниципальный район","Нежинский сельсовет","07648416"]
[271,"Предгорный муниципальный район","Новоблагодарненский сельсовет","07648422"]
[272,"Предгорный муниципальный район","Подкумский сельсовет","07648424"]
[273,"Предгорный муниципальный район","Поселок Мирный","07648415"]
[274,"Предгорный муниципальный район","Предгорный муниципальный район","07648000"]
[275,"Предгорный муниципальный район","Пригородный сельсовет","07648425"]
[276,"Предгорный муниципальный район","Пятигорский сельсовет","07648428"]
[277,"Предгорный муниципальный район","Станица Бекешевская","07648402"]
[278,"Предгорный муниципальный район","Станица Боргустанская","07648407"]
[279,"Предгорный муниципальный район","Суворовский сельсовет","07648431"]
[280,"Предгорный муниципальный район","Тельмановский сельсовет","07648432"]
[281,"Предгорный муниципальный район","Этокский сельсовет","07648434"]
[282,"Предгорный муниципальный район","Юцкий сельсовет","07648437"]
[283,"Предгорный муниципальный район","Яснополянский сельсовет","07648440"]
[284,"Советский муниципальный район","Восточный сельсовет","07650402"]
[285,"Советский муниципальный район","Город Зеленокумск","07650101"]
[286,"Советский муниципальный район","Нинский сельсовет","07650407"]
[287,"Советский муниципальный район","Правокумский сельсовет","07650413"]
[288,"Советский муниципальный район","Село Горькая Балка","07650404"]
[289,"Советский муниципальный район","Село Отказное","07650410"]
[290,"Советский муниципальный район","Советский муниципальный район","07650000"]
[291,"Советский муниципальный район","Солдато-Александровский сельсовет","07650416"]
[292,"Степновский муниципальный район","Богдановский сельсовет","07652402"]
[293,"Степновский муниципальный район","Варениковский сельсовет","07652404"]
[294,"Степновский муниципальный район","Верхнестепновский сельсовет","07652407"]
[295,"Степновский муниципальный район","Иргаклинский сельсовет","07652410"]
[296,"Степновский муниципальный район","Ольгинский сельсовет","07652415"]
[297,"Степновский муниципальный район","Село Соломенское","07652420"]
[298,"Степновский муниципальный район","Степновский муниципальный район","07652000"]
[299,"Степновский муниципальный район","Степновский сельсовет","07652426"]
[300,"Труновский муниципальный район","Безопасненский сельсовет","07654402"]
[301,"Труновский муниципальный район","Донской сельсовет","07654404"]
[302,"Труновский муниципальный район","Кировский сельсовет","07654407"]
[303,"Труновский муниципальный район","Село Новая Кугульта","07654410"]
[304,"Труновский муниципальный район","Село Подлесное","07654413"]
[305,"Труновский муниципальный район","Труновский муниципальный район","07654000"]
[306,"Труновский муниципальный район","Труновский сельсовет","07654416"]
[307,"Туркменский муниципальный район","Владимировский сельсовет","07656401"]
[308,"Туркменский муниципальный район","Кендже-Кулакский сельсовет","07656407"]
[309,"Туркменский муниципальный район","Красноманычский сельсовет","07656410"]
[310,"Туркменский муниципальный район","Куликово-Копанский сельсовет","07656413"]
[311,"Туркменский муниципальный район","Кучерлинский сельсовет","07656416"]
[312,"Туркменский муниципальный район","Летнеставочный сельсовет","07656419"]
[313,"Туркменский муниципальный район","Новокучерлинский сельсовет","07656424"]
[314,"Туркменский муниципальный район","Овощинский сельсовет","07656426"]
[315,"Туркменский муниципальный район","Село Казгулак","07656402"]
[316,"Туркменский муниципальный район","Село Камбулат","07656404"]
[317,"Туркменский муниципальный район","Село Малые Ягуры","07656422"]
[318,"Туркменский муниципальный район","Туркменский муниципальный район","07656000"]
[319,"Шпаковский муниципальный район","Верхнерусский сельсовет","07658402"]
[320,"Шпаковский муниципальный район","Город Михайловск","07658101"]
[321,"Шпаковский муниципальный район","Деминский сельсовет","07658404"]
[322,"Шпаковский муниципальный район","Дубовский сельсовет","07658406"]
[323,"Шпаковский муниципальный район","Казинский сельсовет","07658408"]
[324,"Шпаковский муниципальный район","Надеждинский сельсовет","07658410"]
[325,"Шпаковский муниципальный район","Пелагиадский сельсовет","07658416"]
[326,"Шпаковский муниципальный район","Сенгилеевский сельсовет","07658419"]
[327,"Шпаковский муниципальный район","Станица Новомарьевская","07658413"]
[328,"Шпаковский муниципальный район","Татарский сельсовет","07658422"]
[329,"Шпаковский муниципальный район","Темнолесский сельсовет","07658425"]
[330,"Шпаковский муниципальный район","Цимлянский сельсовет","07658428"]
[331,"Шпаковский муниципальный район","Шпаковский муниципальный район","07658000"]

{"sheet":"modfrmReestrMR","index":29,"n_rows":0,"n_cols":0,"rows_kept":0,"cut":false,"hidden":true,"merged":[]}

{"sheet":"modfrmCheckUpdates","index":30,"n_rows":0,"n_cols":0,"rows_kept":0,"cut":false,"hidden":true,"merged":[]}